Inv Transaction,Supplier Name,Headserv Name,Stratdir Name,Account Description, Redacted Personal Data ,Paid Date,Sum of Inv Amount,Non Recoverable VAT (Where Applicable),Merchant Category 
460301,ACORN LODGE CARE HOME,Adult Social Care,Director of People,Nursing Home Long Stay Fees,,01/06/15,4614.50,   ,Social Community Care Supplies & Services
460301,AMARA CARE LTD,Adult Social Care,Director of People,Nursing Home Long Stay Fees,,01/06/15,19254.29,   ,Social Community Care Supplies & Services
460301,BALMORAL HOMES,Adult Social Care,Director of People,Nursing Home Long Stay Fees,,01/06/15,4914.87,   ,Social Community Care Supplies & Services
460301,BAMFORD GRANGE N/H,Adult Social Care,Director of People,Nursing Home Long Stay Fees,,01/06/15,2745.90,   ,Social Community Care Supplies & Services
460301,BEECHFIELD LODGE,Adult Social Care,Director of People,Nursing Home Long Stay Fees,,01/06/15,1000.33,   ,Social Community Care
460301,BELMONT PARKHILL LTD,Adult Social Care,Director of People,Nursing Home Long Stay Fees,,01/06/15,36214.09,   ,Unclassified
460301,BOURNE HOUSE RESIDENTIAL HOME,Adult Social Care,Director of People,Nursing Home Long Stay Fees,,01/06/15,31544.82,   ,Social Community Care Supplies & Services
460301,BOWLACRE HOME,Adult Social Care,Director of People,Nursing Home Long Stay Fees,,01/06/15,18419.40,   ,Social Community Care Supplies & Services
460301,BROOKVALE,Adult Social Care,Director of People,Nursing Home Long Stay Fees,,01/06/15,6820.66,   ,Social Community Care Supplies & Services
460301,BROUGHTON HOUSE HOME FOR  EX-SERVICE PERSONNEL,Adult Social Care,Director of People,Nursing Home Long Stay Fees,,01/06/15,1743.90,   ,Social Community Care Supplies & Services
460301,CANTERBURY CARE HOMES LTD,Adult Social Care,Director of People,Nursing Home Long Stay Fees,,01/06/15,947.96,   ,Social Community Care Supplies & Services
460301,CARE UK LEARNING DISABILITIES SERVS LTD,Adult Social Care,Director of People,Nursing Home Long Stay Fees,,01/06/15,10460.57,   ,Public Bodies
460301,CHADDERTON TOTAL CAREUNIT LTD,Adult Social Care,Director of People,Nursing Home Long Stay Fees,,01/06/15,5560.73,   ,Social Community Care Supplies & Services
460301,CHARNLEY HOUSE LIMITED,Adult Social Care,Director of People,Nursing Home Long Stay Fees,,01/06/15,18729.20,   ,Social Community Care Supplies & Services
460301,CLARKSON HOUSE,Adult Social Care,Director of People,Nursing Home Long Stay Fees,,01/06/15,17323.38,   ,Social Community Care Supplies & Services
460301,CLEARWATER CARE,Adult Social Care,Director of People,Nursing Home Long Stay Fees,,01/06/15,3395.79,   ,Social Community Care
460301,CLIFFEMOUNT COMMUNITY CARE,Adult Social Care,Director of People,Nursing Home Long Stay Fees,,01/06/15,12509.89,   ,Public Bodies
460301,COMPASS CARE LIMITED,Adult Social Care,Director of People,Nursing Home Long Stay Fees,,01/06/15,4315.67,   ,Social Community Care Supplies & Services
460301,CYNGOR ALCOHOL INFORMATION SERVICE - CAIS,Public Health,Director of Public Health,Nursing Home Long Stay Fees,,01/06/15,8989.14,   ,Medical
460301,DANSHELL HEALTHCARE LTD,Adult Social Care,Director of People,Nursing Home Long Stay Fees,,01/06/15,21840.00,   ,Social Community Care
460301,DOM POLSKI CARE HOME,Adult Social Care,Director of People,Nursing Home Long Stay Fees,,01/06/15,1876.16,   ,Social Community Care
460301,EAGLE HOUSE CARE HOME,Adult Social Care,Director of People,Nursing Home Long Stay Fees,,01/06/15,2936.70,   ,Social Community Care Supplies & Services
460301,EHC MOSTON GRANGE LTD,Adult Social Care,Director of People,Nursing Home Long Stay Fees,,01/06/15,6941.18,   ,Social Community Care Supplies & Services
460301,ELDER HOMES GROUP,Adult Social Care,Director of People,Nursing Home Long Stay Fees,,01/06/15,53701.01,   ,Social Community Care Supplies & Services
460301,ERNELESTHORP NURSING HOME,Adult Social Care,Director of People,Nursing Home Long Stay Fees,,01/06/15,1783.43,   ,Social Community Care Supplies & Services
460301,FIRBANK HOUSE NURSING & RESIDENTIAL CARE HOME,Adult Social Care,Director of People,Nursing Home Long Stay Fees,,01/06/15,7349.92,   ,Social Community Care Supplies & Services
460301,FLORENCE LODGE,Adult Social Care,Director of People,Nursing Home Long Stay Fees,,01/06/15,8179.55,   ,Social Community Care Supplies & Services
460301,FOUR SEASONS HEALTH CARE,Adult Social Care,Director of People,Nursing Home Long Stay Fees,,01/06/15,28788.34,   ,Unclassified
460301,GLENROYD CARE HOME,Adult Social Care,Director of People,Nursing Home Long Stay Fees,,01/06/15,1786.84,   ,Social Community Care Supplies & Services
460301,GREEN PARK,Adult Social Care,Director of People,Nursing Home Long Stay Fees,,01/06/15,6831.00,   ,Social Community Care
460301,HATTON GRANGE,Adult Social Care,Director of People,Nursing Home Long Stay Fees,,01/06/15,58180.82,   ,Social Community Care
460301,HC ONE OF A KIND - KINGS PARK,Adult Social Care,Director of People,Nursing Home Long Stay Fees,,01/06/15,44761.86,   ,Social Community Care
460301,HOMELEIGH,Adult Social Care,Director of People,Nursing Home Long Stay Fees,,01/06/15,16735.72,   ,Social Community Care Supplies & Services
460301,JIGSAW CREATIVE CARE LIMITED,Adult Social Care,Director of People,Nursing Home Long Stay Fees,,01/06/15,8179.57,   ,Social Community Care Supplies & Services
460301,LAUREL BANK RESIDENTIAL CARE HOME LTD,Adult Social Care,Director of People,Nursing Home Long Stay Fees,,01/06/15,10949.74,   ,Social Community Care Supplies & Services
460301,LOUTH CARE LTD,Adult Social Care,Director of People,Nursing Home Long Stay Fees,,01/06/15,1850.14,   ,Social Community Care
460301,LYNWOOD,Adult Social Care,Director of People,Nursing Home Long Stay Fees,,01/06/15,1935.29,   ,Social Community Care Supplies & Services
460301,MARPLE DALE HALL LTD,Adult Social Care,Director of People,Nursing Home Long Stay Fees,,01/06/15,2699.05,   ,Social Community Care Supplies & Services
460301,MERIDIAN HEALTHCARE LTD,Adult Social Care,Director of People,Nursing Home Long Stay Fees,,01/06/15,805667.08,   ,Social Community Care Supplies & Services
460301,MOSS COTTAGE NURSING HOME,Adult Social Care,Director of People,Nursing Home Long Stay Fees,,01/06/15,33523.02,   ,Social Community Care Supplies & Services
460301,MRS P RUGGEE,Adult Social Care,Director of People,Nursing Home Long Stay Fees,Business Payment,01/06/15,3320.46,   ,Social Community Care Supplies & Services
460301,PENDLEBURY CARE HOMES LTD,Adult Social Care,Director of People,Nursing Home Long Stay Fees,,01/06/15,1847.29,   ,Social Community Care Supplies & Services
460301,PENNINE CARE CENTRE,Adult Social Care,Director of People,Nursing Home Long Stay Fees,,01/06/15,3660.17,   ,Social Community Care Supplies & Services
460301,POLEBANK HALL RESIDENTIAL CARE HOME LTD,Adult Social Care,Director of People,Nursing Home Long Stay Fees,,01/06/15,2660.02,   ,Social Community Care
460301,PROGRESS ADULT SERVICES LIMITED,Adult Social Care,Director of People,Nursing Home Long Stay Fees,,01/06/15,13352.14,   ,Social Community Care
460301,RIVERSIDE CARE CENTRE,Adult Social Care,Director of People,Nursing Home Long Stay Fees,,01/06/15,52832.14,   ,Social Community Care Supplies & Services
460301,RUSHCLIFFE CARE LTD T/A OAKFORD MANOR NURSING HOME,Adult Social Care,Director of People,Nursing Home Long Stay Fees,,01/06/15,2888.01,   ,Social Community Care Supplies & Services
460301,SEYMOUR REST HOME,Adult Social Care,Director of People,Nursing Home Long Stay Fees,,01/06/15,1839.41,   ,Social Community Care Supplies & Services
460301,SPINAL UNIT ACTION GROUP,Adult Social Care,Director of People,Nursing Home Long Stay Fees,,01/06/15,1984.16,   ,Social Community Care Supplies & Services
460301,ST GEORGE'S NURSING HOME (OLDHAM) LTD,Adult Social Care,Director of People,Nursing Home Long Stay Fees,,01/06/15,21239.69,   ,Social Community Care Supplies & Services
460301,ST LAWRENCES LODGE,Adult Social Care,Director of People,Nursing Home Long Stay Fees,,01/06/15,9862.79,   ,Social Community Care Supplies & Services
460301,ST MARY'S CONTINUING CARE LTD,Adult Social Care,Director of People,Nursing Home Long Stay Fees,,01/06/15,6342.85,   ,Social Community Care Supplies & Services
460301,STALEY HOUSE EPH,Adult Social Care,Director of People,Nursing Home Long Stay Fees,,01/06/15,22853.84,   ,Social Community Care Supplies & Services
460301,SUNNY BANK PRS LTD,Adult Social Care,Director of People,Nursing Home Long Stay Fees,,01/06/15,2548.29,   ,Social Community Care Supplies & Services
460301,THE FREMANTLE TRUST,Adult Social Care,Director of People,Nursing Home Long Stay Fees,,01/06/15,11850.86,   ,Social Community Care Supplies & Services
460301,THE JOSEPH COX CHARITY,Adult Social Care,Director of People,Nursing Home Long Stay Fees,,01/06/15,2564.14,   ,Social Community Care Supplies & Services
460301,THE OLD VICARAGE,Adult Social Care,Director of People,Nursing Home Long Stay Fees,,01/06/15,1529.06,   ,Social Community Care Supplies & Services
460301,THE ROYAL ELMS REST HOMES,Adult Social Care,Director of People,Nursing Home Long Stay Fees,,01/06/15,1841.58,   ,Social Community Care
460301,THE VICARAGE RESIDENTIAL CARE HOME,Adult Social Care,Director of People,Nursing Home Long Stay Fees,,01/06/15,13114.79,   ,Social Community Care Supplies & Services
460301,THORNCLIFFE GRANGE NURSING HOME,Adult Social Care,Director of People,Nursing Home Long Stay Fees,,01/06/15,18393.65,   ,Social Community Care Supplies & Services
460301,TURNING POINT,Adult Social Care,Director of People,Nursing Home Long Stay Fees,,01/06/15,5040.15,   ,Social Community Care Supplies & Services
460301,TURNING POINT,Public Health,Director of Public Health,Nursing Home Long Stay Fees,,01/06/15,20075.71,   ,Social Community Care Supplies & Services
460301,VICTORIA NURSING HOME,Adult Social Care,Director of People,Nursing Home Long Stay Fees,,01/06/15,8768.57,   ,Social Community Care Supplies & Services
460301,WESTMINSTER HEALTH CARE LTD,Adult Social Care,Director of People,Nursing Home Long Stay Fees,,01/06/15,2039.36,   ,Social Community Care Supplies & Services
460301,WINDMILL CARE HOME,Adult Social Care,Director of People,Nursing Home Long Stay Fees,,01/06/15,2010.13,   ,Social Community Care Supplies & Services
460301,WOODLANDS RESIDENTIAL CARE HOME,Adult Social Care,Director of People,Nursing Home Long Stay Fees,,01/06/15,15158.58,   ,Social Community Care Supplies & Services
460302,BLACKCLIFFE LTD,Adult Social Care,Director of People,Nursing Home Long Stay Fees,,01/06/15,57739.95,   ,Social Community Care Supplies & Services
460302,FAIRFIELD VIEW CARE LTD,Adult Social Care,Director of People,Nursing Home Long Stay Fees,,01/06/15,45445.49,   ,Social Community Care Supplies & Services
460303,ACORN LODGE CARE HOME,Adult Social Care,Director of People,Nursing Home Long Stay Fees,,24/06/15,1797.86,   ,Social Community Care Supplies & Services
460303,AMARA CARE LTD,Adult Social Care,Director of People,Nursing Home Long Stay Fees,,24/06/15,6278.57,   ,Social Community Care Supplies & Services
460303,AUDEN HOUSE RESIDENTIAL HOME,Adult Social Care,Director of People,Nursing Home Long Stay Fees,,24/06/15,17249.56,   ,Social Community Care Supplies & Services
460303,BAMFORD GRANGE N/H,Adult Social Care,Director of People,Nursing Home Long Stay Fees,,24/06/15,2837.43,   ,Social Community Care Supplies & Services
460303,BEECHFIELD LODGE,Adult Social Care,Director of People,Nursing Home Long Stay Fees,,24/06/15,1033.67,   ,Social Community Care
460303,BELMONT PARKHILL LTD,Adult Social Care,Director of People,Nursing Home Long Stay Fees,,24/06/15,31911.06,   ,Unclassified
460303,BLACKCLIFFE LTD,Adult Social Care,Director of People,Nursing Home Long Stay Fees,,24/06/15,105711.53,   ,Social Community Care Supplies & Services
460303,BOURNE HOUSE RESIDENTIAL HOME,Adult Social Care,Director of People,Nursing Home Long Stay Fees,,24/06/15,30992.75,   ,Social Community Care Supplies & Services
460303,BROOKVALE,Adult Social Care,Director of People,Nursing Home Long Stay Fees,,24/06/15,6883.85,   ,Social Community Care Supplies & Services
460303,BROUGHTON HOUSE HOME FOR  EX-SERVICE PERSONNEL,Adult Social Care,Director of People,Nursing Home Long Stay Fees,,24/06/15,890.80,   ,Social Community Care Supplies & Services
460303,CARE UK LEARNING DISABILITIES SERVS LTD,Adult Social Care,Director of People,Nursing Home Long Stay Fees,,24/06/15,10809.26,   ,Public Bodies
460303,CHADDERTON TOTAL CAREUNIT LTD,Adult Social Care,Director of People,Nursing Home Long Stay Fees,,24/06/15,5549.38,   ,Social Community Care Supplies & Services
460303,CHARNLEY HOUSE LIMITED,Adult Social Care,Director of People,Nursing Home Long Stay Fees,,24/06/15,18733.37,   ,Social Community Care Supplies & Services
460303,CLARKSON HOUSE,Adult Social Care,Director of People,Nursing Home Long Stay Fees,,24/06/15,18444.67,   ,Social Community Care Supplies & Services
460303,CLEARWATER CARE,Adult Social Care,Director of People,Nursing Home Long Stay Fees,,24/06/15,3508.98,   ,Social Community Care
460303,CLIFFEMOUNT COMMUNITY CARE,Adult Social Care,Director of People,Nursing Home Long Stay Fees,,24/06/15,16963.60,   ,Public Bodies
460303,COMPASS CARE LIMITED,Adult Social Care,Director of People,Nursing Home Long Stay Fees,,24/06/15,4459.53,   ,Social Community Care Supplies & Services
460303,CYNGOR ALCOHOL INFORMATION SERVICE - CAIS,Public Health,Director of Public Health,Nursing Home Long Stay Fees,,24/06/15,1719.43,   ,Medical
460303,DANSHELL HEALTHCARE LTD,Adult Social Care,Director of People,Nursing Home Long Stay Fees,,24/06/15,8120.00,   ,Social Community Care
460303,DOM POLSKI CARE HOME,Adult Social Care,Director of People,Nursing Home Long Stay Fees,,24/06/15,1815.64,   ,Social Community Care
460303,EAGLE HOUSE CARE HOME,Adult Social Care,Director of People,Nursing Home Long Stay Fees,,24/06/15,3034.59,   ,Social Community Care Supplies & Services
460303,ELDER HOMES GROUP,Adult Social Care,Director of People,Nursing Home Long Stay Fees,,24/06/15,56148.63,   ,Social Community Care Supplies & Services
460303,ERNELESTHORP NURSING HOME,Adult Social Care,Director of People,Nursing Home Long Stay Fees,,24/06/15,1725.90,   ,Social Community Care Supplies & Services
460303,FAIRFIELD VIEW CARE LTD,Adult Social Care,Director of People,Nursing Home Long Stay Fees,,24/06/15,50832.42,   ,Social Community Care Supplies & Services
460303,FERN BANK,Adult Social Care,Director of People,Nursing Home Long Stay Fees,,24/06/15,39161.30,   ,Social Community Care Supplies & Services
460303,FIRBANK HOUSE NURSING & RESIDENTIAL CARE HOME,Adult Social Care,Director of People,Nursing Home Long Stay Fees,,24/06/15,9365.49,   ,Social Community Care Supplies & Services
460303,FOUR SEASONS HEALTH CARE,Adult Social Care,Director of People,Nursing Home Long Stay Fees,,24/06/15,26486.14,   ,Unclassified
460303,GLENROYD CARE HOME,Adult Social Care,Director of People,Nursing Home Long Stay Fees,,24/06/15,1729.20,   ,Social Community Care Supplies & Services
460303,GRANGEFIELD,Adult Social Care,Director of People,Nursing Home Long Stay Fees,,24/06/15,1945.90,   ,Social Community Care
460303,GREATER MANCHESTER WEST MENTAL HEALTH FOUNDATION TRUST,Public Health,Director of Public Health,Nursing Home Long Stay Fees,,24/06/15,41720.00,   ,Medical
460303,HC ONE OF A KIND - GUIDE LANE,Adult Social Care,Director of People,Nursing Home Long Stay Fees,,24/06/15,61013.80,   ,Social Community Care
460303,HC ONE OF A KIND - KINGS PARK,Adult Social Care,Director of People,Nursing Home Long Stay Fees,,24/06/15,48834.01,   ,Social Community Care
460303,HOMELEIGH,Adult Social Care,Director of People,Nursing Home Long Stay Fees,,24/06/15,2357.14,   ,Social Community Care Supplies & Services
460303,JIGSAW CREATIVE CARE LIMITED,Adult Social Care,Director of People,Nursing Home Long Stay Fees,,24/06/15,7915.71,   ,Social Community Care Supplies & Services
460303,LAUREL BANK RESIDENTIAL CARE HOME LTD,Adult Social Care,Director of People,Nursing Home Long Stay Fees,,24/06/15,10765.97,   ,Social Community Care Supplies & Services
460303,LIGHTBOWNE HALL,Adult Social Care,Director of People,Nursing Home Long Stay Fees,,24/06/15,1318.34,   ,Unclassified
460303,LOUTH CARE LTD,Adult Social Care,Director of People,Nursing Home Long Stay Fees,,24/06/15,1761.43,   ,Social Community Care
460303,MARINERS COURT CARE HOME,Adult Social Care,Director of People,Nursing Home Long Stay Fees,,24/06/15,1928.83,   ,Public Bodies
460303,MERIDIAN HEALTHCARE LTD,Adult Social Care,Director of People,Nursing Home Long Stay Fees,,24/06/15,787564.19,   ,Social Community Care Supplies & Services
460303,MOSS COTTAGE NURSING HOME,Adult Social Care,Director of People,Nursing Home Long Stay Fees,,24/06/15,35478.77,   ,Social Community Care Supplies & Services
460303,MRS P RUGGEE,Adult Social Care,Director of People,Nursing Home Long Stay Fees,Business Payment,24/06/15,3625.71,   ,Social Community Care Supplies & Services
460303,OAKWOOD CARE CENTRE,Adult Social Care,Director of People,Nursing Home Long Stay Fees,,24/06/15,7960.49,   ,Social Community Care Supplies & Services
460303,PENDLEBURY CARE HOMES LTD,Adult Social Care,Director of People,Nursing Home Long Stay Fees,,24/06/15,1930.31,   ,Social Community Care Supplies & Services
460303,POLEBANK HALL RESIDENTIAL CARE HOME LTD,Adult Social Care,Director of People,Nursing Home Long Stay Fees,,24/06/15,1427.99,   ,Social Community Care
460303,PROGRESS ADULT SERVICES LIMITED,Adult Social Care,Director of People,Nursing Home Long Stay Fees,,24/06/15,13797.21,   ,Social Community Care
460303,RIVERSIDE CARE CENTRE,Adult Social Care,Director of People,Nursing Home Long Stay Fees,,24/06/15,56065.36,   ,Social Community Care Supplies & Services
460303,RUSHCLIFFE CARE LTD T/A OAKFORD MANOR NURSING HOME,Adult Social Care,Director of People,Nursing Home Long Stay Fees,,24/06/15,3257.16,   ,Social Community Care Supplies & Services
460303,SPINAL UNIT ACTION GROUP,Adult Social Care,Director of People,Nursing Home Long Stay Fees,,24/06/15,2050.30,   ,Social Community Care Supplies & Services
460303,ST GEORGE'S NURSING HOME (OLDHAM) LTD,Adult Social Care,Director of People,Nursing Home Long Stay Fees,,24/06/15,20861.00,   ,Social Community Care Supplies & Services
460303,ST LAWRENCES LODGE,Adult Social Care,Director of People,Nursing Home Long Stay Fees,,24/06/15,10069.83,   ,Social Community Care Supplies & Services
460303,ST MARY'S CONTINUING CARE LTD,Adult Social Care,Director of People,Nursing Home Long Stay Fees,,24/06/15,13090.07,   ,Social Community Care Supplies & Services
460303,STALEY HOUSE EPH,Adult Social Care,Director of People,Nursing Home Long Stay Fees,,24/06/15,13317.94,   ,Social Community Care Supplies & Services
460303,SUNNY BANK PRS LTD,Adult Social Care,Director of People,Nursing Home Long Stay Fees,,24/06/15,2633.23,   ,Social Community Care Supplies & Services
460303,THE ALEXANDRA,Adult Social Care,Director of People,Nursing Home Long Stay Fees,,24/06/15,6279.00,   ,Social Community Care Supplies & Services
460303,THE FREMANTLE TRUST,Adult Social Care,Director of People,Nursing Home Long Stay Fees,,24/06/15,2962.71,   ,Social Community Care Supplies & Services
460303,THE HESLEY GROUP LTD,Adult Social Care,Director of People,Nursing Home Long Stay Fees,,24/06/15,9634.71,   ,Social Community Care Supplies & Services
460303,THE JOSEPH COX CHARITY,Adult Social Care,Director of People,Nursing Home Long Stay Fees,,24/06/15,11602.65,   ,Social Community Care Supplies & Services
460303,THE OLD VICARAGE,Adult Social Care,Director of People,Nursing Home Long Stay Fees,,24/06/15,1580.03,   ,Social Community Care Supplies & Services
460303,THE ROYAL ELMS REST HOMES,Adult Social Care,Director of People,Nursing Home Long Stay Fees,,24/06/15,1782.17,   ,Social Community Care
460303,THE VICARAGE RESIDENTIAL CARE HOME,Adult Social Care,Director of People,Nursing Home Long Stay Fees,,24/06/15,16842.48,   ,Social Community Care Supplies & Services
460303,THORNCLIFFE GRANGE NURSING HOME,Adult Social Care,Director of People,Nursing Home Long Stay Fees,,24/06/15,22831.41,   ,Social Community Care Supplies & Services
460303,VICTORIA NURSING HOME,Adult Social Care,Director of People,Nursing Home Long Stay Fees,,24/06/15,8485.71,   ,Social Community Care Supplies & Services
460303,WINDMILL CARE HOME,Adult Social Care,Director of People,Nursing Home Long Stay Fees,,24/06/15,1945.29,   ,Social Community Care Supplies & Services
460303,WOODLANDS RESIDENTIAL CARE HOME,Adult Social Care,Director of People,Nursing Home Long Stay Fees,,24/06/15,8998.51,   ,Social Community Care Supplies & Services
470611,P & R LABPAK LTD,Environmental Services,Director of Place,General Materials,,23/06/15,1907.51,,Unclassifiable
470611,PRO-POINT EQUIPMENT LIMITED,Environmental Services,Director of Place,General Materials,,01/06/15,5607.95,,"Works - Construction, Repair & Maintenance"
470617,AGGREGATE INDUSTRIES UK LIMITED,Environmental Services,Director of Place,General Materials,,08/06/15,2995.35,,Highway Equipment & Materials
470617,ARCO LIMITED,Civil Engineers,Director of Place,Debits Goods Received,,08/06/15,408.00,,Clothing
470617,ARCO LIMITED,Development Growth & Investment,Director of Place,General Materials,,08/06/15,30.00,,Clothing
470617,ARCO LIMITED,Environmental Services,Director of Place,General Materials,,08/06/15,263.54,,Clothing
470617,BENCHMARK BUILDING SUPPLIES LTD,Civil Engineers,Director of Place,Debits Goods Received,,08/06/15,2080.19,,Building Construction Materials
470617,BENCHMARK BUILDING SUPPLIES LTD,Environmental Services,Director of Place,General Materials,,08/06/15,111.00,,Building Construction Materials
470617,BRAMHALL SURFACING LTD,Environmental Services,Director of Place,Road Maintenance Works,,08/06/15,13760.00,,"Works - Construction, Repair & Maintenance"
470617,BROXAP LIMITED,Environmental Services,Director of Place,General Materials,,08/06/15,2742.00,,Highway Equipment & Materials
470617,CASTINGS SERVICES NW LTD,Civil Engineers,Director of Place,Debits Goods Received,,08/06/15,1385.50,,Unclassified
470617,CASTINGS SERVICES NW LTD,Environmental Services,Director of Place,General Materials,,08/06/15,295.00,,Unclassified
470617,GRAFTON MERCHANTING GB LTD,Civil Engineers,Director of Place,Debits Goods Received,,08/06/15,1106.00,,Building Construction Materials
470617,GRAFTON MERCHANTING GB LTD,Environmental Services,Director of Place,General Materials,,08/06/15,1087.00,,Building Construction Materials
470617,INSTARMAC GROUP PLC,Environmental Services,Director of Place,General Materials,,08/06/15,1464.00,,Highway Equipment & Materials
470617,KEN TAYLOR SUPPLIES LTD,Civil Engineers,Director of Place,Debits Goods Received,,08/06/15,136.40,,Unclassified
470617,KEN TAYLOR SUPPLIES LTD,Environmental Services,Director of Place,General Materials,,08/06/15,936.00,,Unclassified
470617,M.C. & M.A. STEWART HAULAGE LTD,Environmental Services,Director of Place,General Materials,,08/06/15,501.38,,Horticultural
470617,MARWOOD ELECTRICAL CO,Civil Engineers,Director of Place,Debits Goods Received,,08/06/15,3063.00,,Highway Equipment & Materials
470617,P F CUSACK LTD,Civil Engineers,Director of Place,Debits Goods Received,,08/06/15,554.62,,Horticultural
470617,SHAW METAL SOLUTIONS LTD,Environmental Services,Director of Place,General Materials,,08/06/15,3060.00,,"Works - Construction, Repair & Maintenance"
470617,SIGNATURE LIMITED,Environmental Services,Director of Place,General Materials,,08/06/15,2631.65,,Highway Equipment & Materials
470617,STIRLING LLOYD POLYCHEM LTD,Environmental Services,Director of Place,General Materials,,08/06/15,1626.46,,Unclassified
470617,TARMAC CENTRAL LIMITED,Civil Engineers,Director of Place,Debits Goods Received,,08/06/15,2100.15,,Highway Equipment & Materials
470617,TARMAC CENTRAL LIMITED,Environmental Services,Director of Place,General Materials,,08/06/15,711.14,,Highway Equipment & Materials
470617,TARMAC CENTRAL LIMITED,Environmental Services,Director of Place,Stores Purchases,,08/06/15,64.62,,Highway Equipment & Materials
470617,WENDY LAWTON,Environmental Services,Director of Place,Road Maintenance Works,Business Payment,08/06/15,720.00,,Cleaning & Janitorial
470617,WOLSELEY UK LTD,Environmental Services,Director of Place,General Materials,,08/06/15,5731.89,,Highway Equipment & Materials
470618,AGGREGATE INDUSTRIES UK LIMITED,Environmental Services,Director of Place,General Materials,,18/06/15,2371.71,,Highway Equipment & Materials
470618,BENCHMARK BUILDING SUPPLIES LTD,Civil Engineers,Director of Place,Debits Goods Received,,18/06/15,1489.91,,Building Construction Materials
470618,BENCHMARK BUILDING SUPPLIES LTD,Environmental Services,Director of Place,General Materials,,18/06/15,352.99,,Building Construction Materials
470618,CBS (NORTH WEST) LTD,Environmental Services,Director of Place,Sub-contractor Services,,18/06/15,625.71,,"Works - Construction, Repair & Maintenance"
470618,FORMWORK DIRECT INTERNATIONAL,Environmental Services,Director of Place,Additional Hire,,18/06/15,866.07,,Unclassifiable
470618,FORMWORK DIRECT INTERNATIONAL,Environmental Services,Director of Place,General Materials,,18/06/15,200.00,,Unclassifiable
470618,GALA TENT,Environmental Services,Director of Place,General Materials,,18/06/15,6640.19,,Leisure Services
470618,GROUNDFORCE SHORCO,Environmental Services,Director of Place,Additional Hire,,18/06/15,406.80,,Vehicles
470618,GROUNDFORCE SHORCO,Environmental Services,Director of Place,General Materials,,18/06/15,100.00,,Vehicles
470618,INSTARMAC GROUP PLC,Civil Engineers,Director of Place,Debits Goods Received,,18/06/15,856.00,,Highway Equipment & Materials
470618,KEN TAYLOR SUPPLIES LTD,Environmental Services,Director of Place,General Materials,,18/06/15,943.00,,Unclassified
470618,KENNY BROTHERS,Environmental Services,Director of Place,Sub-contractor Services,,18/06/15,9158.66,,Non 3rd Party spend  
470618,L&R ROADLINES LTD,Environmental Services,Director of Place,Sub-contractor Services,,18/06/15,8589.63,,Highway Equipment & Materials
470618,M.C. & M.A. STEWART HAULAGE LTD,Environmental Services,Director of Place,General Materials,,18/06/15,747.50,,Horticultural
470618,MALLATITE LTD,Civil Engineers,Director of Place,Debits Goods Received,,18/06/15,1375.10,,Highway Equipment & Materials
470618,MALLATITE LTD,Environmental Services,Director of Place,General Materials,,18/06/15,2929.75,,Highway Equipment & Materials
470618,MALLATITE LTD,Environmental Services,Director of Place,Stores Purchases,,18/06/15,200.00,,Highway Equipment & Materials
470618,MULTIHOG,Environmental Services,Director of Place,Additional Hire,,18/06/15,3578.30,,Unclassifiable
470618,SECURETASK SECURITY LTD,Environmental Services,Director of Place,Sub-contractor Services,,18/06/15,4981.80,,Facilities & Management Services
470618,SPEEDY ASSET SERVICES LTD,Environmental Services,Director of Place,Additional Hire,,18/06/15,454.23,,Building Construction Materials
470618,SPEEDY ASSET SERVICES LTD,Environmental Services,Director of Place,General Materials,,18/06/15,198.00,,Building Construction Materials
470618,SWARCO TRAFFIC LIMITED,Environmental Services,Director of Place,General Materials,,18/06/15,7592.90,,Traffic Management
470619,BRAMHALL SURFACING LTD,Environmental Services,Director of Place,Sub-contractor Services,,23/06/15,22332.22,,"Works - Construction, Repair & Maintenance"
470619,CBS (NORTH WEST) LTD,Environmental Services,Director of Place,Sub-contractor Services,,23/06/15,25686.07,,"Works - Construction, Repair & Maintenance"
470619,EAGLE CIVIL ENGINEERING LTD,Environmental Services,Director of Place,Sub-contractor Services,,23/06/15,9337.01,,Highway Equipment & Materials
470619,HARTTRON  LTD,Environmental Services,Director of Place,Sub-contractor Services,,23/06/15,4320.00,,"Works - Construction, Repair & Maintenance"
470619,HMS DECORATIVE SURFACING LTD,Environmental Services,Director of Place,Sub-contractor Services,,23/06/15,6000.00,,Building Construction Materials
470619,HMS DECORATIVE SURFACING LTD,Multiple Heads of Service,Multiple Strategic Directorates,Tax Retained Sub Contractors,,23/06/15,-235.00,,Building Construction Materials
470619,KENNY BROTHERS,Environmental Services,Director of Place,Sub-contractor Services,,23/06/15,24804.62,,Non 3rd Party spend  
470619,L&R ROADLINES LTD,Environmental Services,Director of Place,Sub-contractor Services,,23/06/15,700.85,,Highway Equipment & Materials
470619,NEW CHARTER BUILD CO LTD,Environmental Services,Director of Place,Sub-contractor Services,,23/06/15,1592.59,,"Works - Construction, Repair & Maintenance"
470619,P P O'CONNOR,Environmental Services,Director of Place,Sub-contractor Services,Business Payment,23/06/15,19921.46,,Public Bodies
470619,SECURETASK SECURITY LTD,Environmental Services,Director of Place,Sub-contractor Services,,23/06/15,7691.83,,Facilities & Management Services
470620,AJC ROAD SWEEPERS,Environmental Services,Director of Place,Sub-contractor Services,,29/06/15,2250.00,,Vehicles
470620,CARRIER RENTAL SYSTEMS (UK) LIMITED,Environmental Services,Director of Place,Additional Hire,,29/06/15,539.00,,"Works - Construction, Repair & Maintenance"
470620,EAGLE CIVIL ENGINEERING LTD,Environmental Services,Director of Place,Sub-contractor Services,,29/06/15,11853.63,,Highway Equipment & Materials
470620,ELLIOTT GROUP LTD,Environmental Services,Director of Place,Additional Hire,,29/06/15,1247.66,,"Works - Construction, Repair & Maintenance"
470620,FAIRWAY LANDSCAPES LTD,Environmental Services,Director of Place,Sub-contractor Services,,29/06/15,15699.00,,"Works - Construction, Repair & Maintenance"
470620,FORMWORK DIRECT INTERNATIONAL,Environmental Services,Director of Place,General Materials,,29/06/15,1282.91,,Unclassifiable
470620,KONSTRUCTA HIRE LIMITED,Environmental Services,Director of Place,Additional Hire,,29/06/15,1132.00,,"Works - Construction, Repair & Maintenance"
470620,KONSTRUCTA HIRE LIMITED,Environmental Services,Director of Place,General Materials,,29/06/15,784.00,,"Works - Construction, Repair & Maintenance"
470620,MATHER AND STUART GENERATORS LTD,Environmental Services,Director of Place,Additional Hire,,29/06/15,588.00,,Horticultural
470620,MULTIHOG,Environmental Services,Director of Place,Additional Hire,,29/06/15,3000.00,,Unclassifiable
470620,MULTIHOG,Multiple Heads of Service,Multiple Strategic Directorates,"Plant, Vehicles And Equipment",,29/06/15,149936.00,,Unclassifiable
470620,NETCARE EUROPE LTD,Environmental Services,Director of Place,General Materials,,29/06/15,939.12,,Unclassified
470620,PG FABRICATIONS,Environmental Services,Director of Place,Sub-contractor Services,,29/06/15,2465.00,,"Works - Construction, Repair & Maintenance"
470620,PG FABRICATIONS,Multiple Heads of Service,Multiple Strategic Directorates,Tax Retained Sub Contractors,,29/06/15,-347.60,,"Works - Construction, Repair & Maintenance"
470620,PREMIER WASTE (UK) LTD,Environmental Services,Director of Place,General Materials,,29/06/15,2447.00,,Environmental Services
470620,SIGNATURE LIMITED,Environmental Services,Director of Place,General Materials,,29/06/15,511.09,,Highway Equipment & Materials
470620,SPEEDY ASSET SERVICES LTD,Environmental Services,Director of Place,Additional Hire,,29/06/15,785.66,,Building Construction Materials
470620,SPEEDY ASSET SERVICES LTD,Environmental Services,Director of Place,General Materials,,29/06/15,413.91,,Building Construction Materials
470620,VIRIDOR,Environmental Services,Director of Place,Hospitality,,29/06/15,47336.29,,Environmental Services
470620,WENDY LAWTON,Environmental Services,Director of Place,Sub-contractor Services,Business Payment,29/06/15,510.00,,Cleaning & Janitorial
470620,WOLSELEY UK LTD,Environmental Services,Director of Place,General Materials,,29/06/15,1384.41,,Highway Equipment & Materials
3250503,DAWSON RENTALS SWEEPERS,Environmental Services,Director of Place,Replacement Hire,,01/06/15,1062.00,,Highway Equipment & Materials
3250509,ATS EUROMASTER LTD,Environmental Services,Director of Place,Tyre Costs,,01/06/15,8287.76,,Vehicles
3250509,BURNT TREE GROUP LIMITED,Environmental Services,Director of Place,Additional Hire,,01/06/15,142.40,,Vehicles
3250509,BURNT TREE GROUP LIMITED,Environmental Services,Director of Place,Core Hire,,01/06/15,1254.00,,Vehicles
3250509,BURNT TREE GROUP LIMITED,Environmental Services,Director of Place,Workshop Recharges including Misuse & Damage Costs,,01/06/15,29.70,,Vehicles
3250509,DENNIS EAGLE LTD,Environmental Services,Director of Place,General Materials,,01/06/15,1458.20,,Vehicles
3250509,F & G COMMERCIALS (OLDHAM) LIMITED,Environmental Services,Director of Place,General Materials,,01/06/15,624.01,,Vehicles
3250509,F G ROWLAND LTD,Environmental Services,Director of Place,Core Hire,,01/06/15,845.00,,Vehicles
3250509,F. R. SHARROCK LIMITED,Environmental Services,Director of Place,General Materials,,01/06/15,7160.00,,Public Bodies
3250509,G B OILS TA CARLTON FUELS,Transport,Director of Place,Diesel Fuel,,01/06/15,39804.35,,Unclassified
3250509,GEESINK NORBA LTD,Environmental Services,Director of Place,General Materials,,01/06/15,1547.71,,Environmental Services
3250509,HARSH LTD,Environmental Services,Director of Place,General Materials,,01/06/15,801.00,,Vehicles
3250509,INDUSTRIAL TRUCK SERVICES LTD,Environmental Services,Director of Place,General Materials,,01/06/15,846.28,,Vehicles
3250509,JOHNSTON SWEEPERS LTD,Environmental Services,Director of Place,General Materials,,01/06/15,788.80,,Environmental Services
3250509,JOHNSTON SWEEPERS LTD,Transport,Director of Place,Debits Goods Received,,01/06/15,385.24,,Environmental Services
3250509,THE SUNLIGHT SERVICE GROUP LTD,Environmental Services,Director of Place,Cleaning Materials,,01/06/15,361.39,,Catering
3250509,THE SUNLIGHT SERVICE GROUP LTD,Environmental Services,Director of Place,Protective Clothing,,01/06/15,349.35,,Catering
3250510,AIRMATIC COMPRESSORS LIMITED,Environmental Services,Director of Place,General Equipment Purchase,,01/06/15,1209.19,,Environmental Services
3250510,HI-Q TYRESERVICES,Environmental Services,Director of Place,General Materials,,01/06/15,109.29,,Vehicles
3250510,HI-Q TYRESERVICES,Environmental Services,Director of Place,Tyre Costs,,01/06/15,5937.49,,Vehicles
3250511,A & J MOTORSPARES,Environmental Services,Director of Place,General Materials,,04/06/15,575.34,,Vehicles
3250511,BURNT TREE GROUP LIMITED,Environmental Services,Director of Place,Additional Hire,,04/06/15,3445.40,,Vehicles
3250511,BURNT TREE GROUP LIMITED,Environmental Services,Director of Place,Core Hire,,04/06/15,1197.00,,Vehicles
3250511,DAWSON RENTALS BUS AND COACH LTD,Environmental Services,Director of Place,Core Hire,,04/06/15,1499.11,,Transport
3250511,DAWSON RENTALS SWEEPERS,Environmental Services,Director of Place,Replacement Hire,,04/06/15,2478.00,,Highway Equipment & Materials
3250511,DENNIS EAGLE LTD,Environmental Services,Director of Place,Consumable Materials,,04/06/15,222.94,,Vehicles
3250511,DENNIS EAGLE LTD,Environmental Services,Director of Place,General Materials,,04/06/15,5358.82,,Vehicles
3250511,FREIGHT TRANSPORT ASSOCIATION,Environmental Services,Director of Place,Vehicle Inspection/Testing Costs,,04/06/15,599.25,,Vehicles
3250511,G B OILS TA CARLTON FUELS,Transport,Director of Place,Diesel Fuel,,04/06/15,29219.60,,Unclassified
3250511,GUNN JCB LTD,Environmental Services,Director of Place,General Materials,,04/06/15,9169.38,,Vehicles
3250511,JOHNSTON SWEEPERS LTD,Environmental Services,Director of Place,General Materials,,04/06/15,1473.31,,Environmental Services
3250511,M.T.KAILL (PLANT HIRE)LTD,Environmental Services,Director of Place,Additional Hire,,10/06/15,1539.00,,"Works - Construction, Repair & Maintenance"
3250511,NOBLET MUNICIPAL SERVICES LTD,Environmental Services,Director of Place,Replacement Hire,,04/06/15,3400.00,,Public Bodies
3250511,T & C MOTOR PANELS,Environmental Services,Director of Place,General Materials,,04/06/15,570.00,,Vehicles
3250511,TOLLAND PRECISION ENGINEERING LTD,Environmental Services,Director of Place,General Materials,,04/06/15,1373.75,,"Works - Construction, Repair & Maintenance"
3250512,ATS EUROMASTER LTD,Environmental Services,Director of Place,General Materials,,11/06/15,17.92,,Vehicles
3250512,ATS EUROMASTER LTD,Environmental Services,Director of Place,Tyre Costs,,11/06/15,3161.12,,Vehicles
3250512,DENNIS EAGLE LTD,Environmental Services,Director of Place,General Materials,,11/06/15,911.06,,Vehicles
3250512,G B OILS TA CARLTON FUELS,Transport,Director of Place,Gas - Oil Fuel,,11/06/15,4526.75,,Unclassified
3250512,JOHNSTON SWEEPERS LTD,Environmental Services,Director of Place,General Materials,,11/06/15,1396.86,,Environmental Services
3250512,MITCHELL,Environmental Services,Director of Place,General Materials,,17/06/15,682.32,,Unclassified
3250512,RIVERSIDE TRUCK RENTAL LIMITED,Environmental Services,Director of Place,Replacement Hire,,11/06/15,4095.00,,Vehicles
3250512,SHB HIRE LTD,Environmental Services,Director of Place,Core Hire,,11/06/15,10313.31,,Vehicles
3250512,WEST PENNINE TRUCKS,Environmental Services,Director of Place,General Materials,,11/06/15,508.29,,Vehicles
3250513,DENNIS EAGLE LTD,Environmental Services,Director of Place,General Materials,,17/06/15,1229.14,,Vehicles
3250513,F G ROWLAND LTD,Environmental Services,Director of Place,Core Hire,,17/06/15,845.00,,Vehicles
3250513,HI-Q TYRESERVICES,Environmental Services,Director of Place,Tyre Costs,,17/06/15,610.47,,Vehicles
3250513,I H S HOSEMASTER,Environmental Services,Director of Place,General Materials,,17/06/15,1427.32,,Unclassifiable
3250514,DAWSON RENTALS SWEEPERS,Environmental Services,Director of Place,Replacement Hire,,25/06/15,896.00,,Highway Equipment & Materials
3250514,DENNIS EAGLE LTD,Environmental Services,Director of Place,Consumable Materials,,25/06/15,723.51,,Vehicles
3250514,DENNIS EAGLE LTD,Environmental Services,Director of Place,General Materials,,25/06/15,2784.52,,Vehicles
3250514,F & G COMMERCIALS (OLDHAM) LIMITED,Environmental Services,Director of Place,General Materials,,25/06/15,1231.75,,Vehicles
3250514,F. R. SHARROCK LIMITED,Environmental Services,Director of Place,General Materials,,25/06/15,195.85,,Public Bodies
3250514,F. R. SHARROCK LIMITED,Transport,Director of Place,Debits Goods Received,,25/06/15,622.15,,Public Bodies
3250514,FAUN ZOELLER (UK) LTD,Transport,Director of Place,Debits Goods Received,,25/06/15,1422.00,,Vehicles
3250514,G B OILS TA CARLTON FUELS,Transport,Director of Place,Diesel Fuel,,25/06/15,19701.04,,Unclassified
3250514,HI-Q TYRESERVICES,Environmental Services,Director of Place,Tyre Costs,,25/06/15,2333.82,,Vehicles
3250514,HOSEMASTER MANCHESTER LTD,Environmental Services,Director of Place,General Materials,,25/06/15,549.19,,"Works - Construction, Repair & Maintenance"
3250514,JOHNSTON SWEEPERS LTD,Environmental Services,Director of Place,General Materials,,25/06/15,749.39,,Environmental Services
3250514,PEAK PARTS,Environmental Services,Director of Place,Consumable Materials,,25/06/15,838.31,,Vehicles
3250514,T & C MOTOR PANELS,Environmental Services,Director of Place,Insurance Claim Excess,,25/06/15,500.00,,Vehicles
3250514,VERSALIFT DISTRIBUTORS (UK) LTD,Environmental Services,Director of Place,General Equipment Repair & Maintenance,,25/06/15,5770.00,,Vehicles
3250514,VERSALIFT DISTRIBUTORS (UK) LTD,Environmental Services,Director of Place,General Materials,,25/06/15,237.36,,Vehicles
3250514,WARRINGTON TRUCK PARTS LTD,Environmental Services,Director of Place,General Materials,,25/06/15,1434.25,,Unclassified
5182391,SCOPE,Adult Social Care,Director of People,Homecare Fees,,17/06/15,12718.72,,Unclassified
5185373,BERTRAM LIBRARY SERVICES,Education,Director of People,Text Books Periodicals and Newspapers,,15/06/15,3018.50,,Education
5188113,SCOPE,Education,Director of People,Professional Services,,17/06/15,14718.72,,Unclassified
5188114,SCOPE,Education,Director of People,Professional Services,,17/06/15,14718.72,,Unclassified
5190706,IMPROVEMENT AND DEVELOPMENT AGENCY,Adult Services,Director of People,General Expenditure,,17/06/15,2947.20,,Human Resources
5192518,THE CHESHIRE & GREATER MANCHESTER COMMUNITY REHABILITATION COMPANY LTD,Stronger Communities,Director of People,Professional Services,,17/06/15,4419.88,,Unclassifiable
5193224,NETCARE EUROPE LTD,Asset & Investment Partnership Management,Director of Place,Communications Equipment,,25/06/15,1358.00,,Unclassified
5193241,RICOH UK,Multiple Heads of Service,Multiple Strategic Directorates,Photo Print Charges,,17/06/15,924.55,,Facilities & Management Services
5195757,AIDSERVICE LTD,Childrens Services,Director of People,Other Accomodation Related Costs,,23/06/15,1065.60,,Unclassifiable
5196461,YSGOL UWCHRADD CAERGYBI,Education,Director of People,Other Local Authorities Fees,,24/06/15,3800.00,,Education
5197214,GREATER MANCHESTER WASTE DISPOSAL AUTH.,Environmental Services,Director of Place,GMC Waste Disposal Levy,,18/06/15,1376583.00,,Environmental Services
5197363,EON ENERGY,Environmental Services,Director of Place,Electricity,,08/06/15,2510.19,,Utilities
5197379,CENTRAL MANCHESTER UNIVERSITY HOSPITAL NHS FT,Public Health,Director of Public Health,Professional Services,,15/06/15,1072.00,,Human Resources
5197455,FOUNTAINS & FEATURES LIMITED,Environmental Services,Director of Place,General Materials,,10/06/15,775.50,,Domestic Goods
5197460,P MCGUINNESS & CO LTD,Environmental Services,Director of Place,Refurbishment Works, ,08/06/15,4880.00,,"Works - Construction, Repair & Maintenance"
5197626,IMPROVEMENT AND DEVELOPMENT AGENCY,Adult Services,Director of People,General Expenditure,,29/06/15,1300.35,,Human Resources
5197909,UNITED UTILITIES WATER PLC,Environmental Services,Director of Place,Water Rates,,08/06/15,682.75,,Utilities
5197911,UNITED UTILITIES WATER PLC,Environmental Services,Director of Place,Water Rates,,08/06/15,981.94,,Utilities
5197912,EON ENERGY,Environmental Services,Director of Place,Electricity,,08/06/15,2302.66,,Utilities
5197944,THE CHESHIRE & GREATER MANCHESTER COMMUNITY REHABILITATION COMPANY LTD,Environmental Services,Director of Place,Professional Services,,25/06/15,4666.50,,Unclassifiable
5198018,JAMES BUTTON & CO SOLICITORS,Environmental Services,Director of Place,Training Course Costs,,17/06/15,910.04,,Legal Services
5198295,DTZ,Development Growth & Investment,Director of Place,Professional Services,,25/06/15,5000.00,,Non 3rd Party spend  
5198331,SICO EUROPE LIMITED,Asset Management and Investment Partnership Management,Director of Place,Adaptations - Small Jobs,,24/06/15,1059.00,,Furniture
5198563,ANVIL MASTERS,Environmental Services,Director of Place,General Materials,,08/06/15,2350.00,,Building Construction Materials
5198609,PLACEFIRST LTD,Development Growth & Investment,Director of Place,Professional Services,,03/06/15,10000.00,,Public Bodies
5198625,HEALTH MANAGEMENT (UK) LTD,Governance,Director of Governance and Resources,Professional Consultancy Services,,01/06/15,4792.10,,Medical
5198804,RIGBY TAYLOR LTD,Environmental Services,Director of Place,General Materials,,01/06/15,9150.00,,Horticultural
5198812,XEROX (UK) LIMITED,Governance,Director of Governance and Resources,Printing And Stationery,,01/06/15,3500.00,,Information Communication Technology
5198847,ADT FIRE & SECURITY,Asset & Investment Partnership Management,Director of Place,Computer Hardware,,17/06/15,3379.99,,Facilities & Management Services
5198859,IBI GROUP,Development Growth & Investment,Director of Place,Professional Services,,03/06/15,2690.00,,Consultancy
5198925,DESTIN SOLUTIONS LTD,Exchequer,Director of Governance and Resources,Subscriptions,,15/06/15,8400.00,,Consultancy
5199195,CASH BOX CREDIT UNION LTD,Stronger Communities,Director of People,Emergency Grant Payments,,01/06/15,10000.00,,Charities and Voluntary Organisations
5199202,TAMESIDE ARTS LTD,Adult Social Care,Director of People,Professional Services,,01/06/15,1071.00,,Leisure Services
5199300,GREATER MANCHESTER COMBINED AUTHORITY,Environmental Services,Director of Place,Passenger Transport Levy,,10/06/15,1585400.00,,Unclassified
5199318,TTS GROUP LTD,Public Health,Director of Public Health,Educational Equipment,,03/06/15,1941.86,,Education
5199320,TTS GROUP LTD,Public Health,Director of Public Health,Educational Equipment,,03/06/15,1049.25,,Education
5199321,ROBERT TAYLOR,Stronger Communities,Director of People,Professional Entertainment Services,Business Payment,17/06/15,1000.00,,Public Bodies
5199340,THOMAS BOW LTD T/A THOMAS BOW  CITY ASPHALT,Multiple Heads of Service,Multiple Strategic Directorates,Highway Construction,,10/06/15,83530.36,,"Works - Construction, Repair & Maintenance"
5199414,PATROL,Environmental Services,Director of Place,Court Fees,,17/06/15,4030.00,,Unclassifiable
5199505,STAMFORD CARS UK LTD,Education,Director of People,Transport Of Ola Pupils,,01/06/15,1131.00,,Unclassified
5199594,PG FABRICATIONS,Cultural and Customer Services,Director of People,Adaptations - Small Jobs,,17/06/15,2940.00,,"Works - Construction, Repair & Maintenance"
5199610,SUNSHINE WINDOWS,Childrens Services,Director of People,Other Accomodation Related Costs,,23/06/15,972.00,,Building Construction Materials
5199611,THE CHESHIRE & GREATER MANCHESTER COMMUNITY REHABILITATION COMPANY LTD,Stronger Communities,Director of People,Professional Services,,17/06/15,3315.00,,Unclassifiable
5199624,TAMESIDE ARTS LTD,Adult Social Care,Director of People,Professional Services,,04/06/15,1071.00,,Leisure Services
5199630,S&M PLUMBING AND HEATING,Adult Social Care,Director of People,Building Repairs,,03/06/15,1980.00,,Building Construction Materials
5199631,CENTRAL MANCHESTER UNIVERSITY HOSPITAL NHS FT,Public Health,Director of Public Health,Professional Services,,03/06/15,21987.00,,Human Resources
5199643,ALTERNATIVE FUTURES GROUP,Adult Social Care,Director of People,Homecare Fees,,23/06/15,15049.42,,Social Community Care Supplies & Services
5199673,DR MARGARET SMITH,Education,Director of People,Professional Services,Business Payment,11/06/15,1600.00,,Medical
5199683,HMS DECORATIVE SURFACING LTD,Engineers Client,Director of Place,Road Marking Works,,17/06/15,578.50,,Building Construction Materials
5199767,WILLIAMS WOODWARD LTD,Finance,Director of Governance and Resources,Professional Consultancy Services,,04/06/15,4980.00,,Consultancy
5199785,ROMPA / WINSLOW,Public Health,Director of Public Health,Educational Equipment,,11/06/15,3591.95,,Social Community Care
5199786,CARE UK HOMECARE,Adult Social Care,Director of People,Homecare Fees,,23/06/15,3696.28,,Social Community Care Supplies & Services
5199816,DROYLSDEN FOOTBALL CLUB,Tameside Investment Partnership,Director of Place,Other Works, ,25/06/15,22400.00,,Public Bodies
5199821,CENTUM CONSTRUCTION SERVICES,Multiple Heads of Service,Multiple Strategic Directorates,Refurbishment Construction Costs, ,17/06/15,44797.96,,Unclassified
5199839,DBS,Governance,Director of Governance and Resources,Professional Consultancy Services,,23/06/15,572.00,,Human Resources
5199892,THE STROKE ASSOCIATION,Adult Social Care,Director of People,Contributions,,15/06/15,30845.70,,Unclassified
5199910,NEW BRIDGE HORIZONS,Adult Social Care,Director of People,Homecare Fees,,23/06/15,1984.75,,Social Community Care Supplies & Services
5199912,NEW BRIDGE HORIZONS,Adult Social Care,Director of People,Homecare Fees,,23/06/15,2218.25,,Social Community Care Supplies & Services
5199927,PATROL,Environmental Services,Director of Place,Court Fees,,17/06/15,2494.00,,Unclassifiable
5199932,BERTRAM LIBRARY SERVICES,Education,Director of People,Text Books Periodicals and Newspapers,,03/06/15,1858.66,,Education
5199942,TAMESIDE LINK,Adult Social Care,Director of People,Voluntary Organisations Fees,,23/06/15,15254.59,,Social Community Care Supplies & Services
5199954,NEW BRIDGE HORIZONS,Adult Social Care,Director of People,Homecare Fees,,23/06/15,2218.25,,Social Community Care Supplies & Services
5199955,NEW BRIDGE HORIZONS,Adult Social Care,Director of People,Homecare Fees,,23/06/15,508.00,,Social Community Care Supplies & Services
5199965,COMMUNITY AND VOLUNTARY ACTION TAMESIDE,Stronger Communities,Director of People,Grants to Organisations,,04/06/15,10000.00,,Charities and Voluntary Organisations
5199983,GREATER MANCHESTER COMBINED AUTHORITY,Engineers Client,Director of Place,Engineers -External,,03/06/15,17349.13,,Unclassified
5199986,CITY LIFT SERVICES (NW) LTD,Adult Social Care,Director of People,General Equipment Repair & Maintenance,,17/06/15,13900.00,,Unclassified
5199988,VIRGIN BLACKPOOL,Public Health,Director of Public Health,Professional Services,,01/06/15,1014.00,,Social Community Care 
5199989,BEMROSEBOOTH,Environmental Services,Director of Place,General Materials,,23/06/15,918.00,,Unclassifiable
5200002,GENERAL UTILITIES NORTHWEST LTD,Environmental Services,Director of Place,Highway Drainage Engineers Recharge,,17/06/15,1200.00,,"Works - Construction, Repair & Maintenance"
5200007,CACI LTD,Childrens Services,Director of People,Computer Hardware Maintenance Costs,,18/06/15,6307.82,,Information Communication Technology
5200010,CENTRELEASE LIMITED,Environmental Services,Director of Place,General Lease,,17/06/15,8045.02,,Financial Services
5200026,POSTURITE (UK) LIMITED,Exchequer,Director of Governance and Resources,General Equipment Purchase, ,08/06/15,847.78,,Health and Safety
5200049,SALFORD CITY COUNCIL,Adult Services,Director of People,General Expenditure,,15/06/15,8300.00,,Unclassifiable
5200062,STOCKPORT NHS FOUNDATION TRUST,Strategy & Early Intervention,Director of People,Professional Services,,03/06/15,2492.20,,Medical
5200089,MINI SOIL SURVEYS (CHES & STAFFS) LTD,Environmental Services,Director of Place,Engineers Works,,10/06/15,1077.00,,"Works - Construction, Repair & Maintenance"
5200114,HOPWOOD HALL COLLEGE,Education,Director of People,Voluntary Organisations Fees,,10/06/15,6246.33,,Education
5200115,APSE,Environmental Services,Director of Place,Professional Services,,17/06/15,3589.00,,Human Resources
5200119,BUCHANAN COMPUTING LTD,Environmental Services,Director of Place,Licences,,17/06/15,2801.00,,Information Communication Technology
5200133,NORTH WEST COMMUNITY  SERVICES (GTR M/CR) LTD,Adult Social Care,Director of People,Homecare Fees,,23/06/15,780.75,,Unclassified
5200138,ASSESSMENT AND QUALIFICATIONS ALLIANCE,Education,Director of People,Examination Fees,,08/06/15,589.10,,Financial Services
5200146,SICO EUROPE LIMITED,Asset Management and Investment Partnership Management,Director of Place,Adaptations - Small Jobs,,24/06/15,2117.00,,"Works - Construction, Repair & Maintenance"
5200148,GBM DIGITAL TECHNOLOGIESLIMITED,Governance,Director of Governance and Resources,Professional Photography Services,,03/06/15,724.08,,Unclassified
5200152,ASCO EDUCATIONAL SUPPLIES LTD,Public Health,Director of Public Health,Educational Equipment,,03/06/15,1566.25,,Education
5200153,TARGET ESOLUTIONS LTD,Exchequer,Director of Governance and Resources,Professional Consultancy Services,,08/06/15,3360.00,,Unclassifiable
5200153,TARGET ESOLUTIONS LTD,Exchequer,Director of Governance and Resources,Staff Travel Costs,,08/06/15,136.50,,Unclassifiable
5200153,TARGET ESOLUTIONS LTD,Exchequer,Director of Governance and Resources,Training Course Costs,,08/06/15,840.00,,Unclassifiable
5200156,TAMESIDE COLLEGE,Education,Director of People,Professional Services,,08/06/15,3618.75,,Unclassified
5200160,NSL LIMITED,Multiple Heads of Service,Multiple Strategic Directorates,Refurbish Accommodation Works,,24/06/15,2635.46,,Unclassified
5200172,MET ENGINEERING LTD,Asset & Investment Partnership Management,Director of Place,Building Maintenance,,25/06/15,2985.00,,"Works - Construction, Repair & Maintenance"
5200185,WILLIAMS WOODWARD LTD,Finance,Director of Governance and Resources,Professional Consultancy Services,,08/06/15,3735.00,,Unclassified
5200186,CREATIVE SUPPORT LTD,Adult Social Care,Director of People,Homecare Fees,,23/06/15,13634.25,,Social Community Care Supplies & Services
5200199,OSMIS EDUCATION LIMITED,Digital Tameside,Director of Place,Professional Services,,01/06/15,3275.00,,Information Communication Technology
5200204,THE FURNISHING SERVICE LTD,Stronger Communities,Director of People,Fixtures & Fittings Purchase,,01/06/15,780.41,,Furniture
5200213,ASCO EDUCATIONAL SUPPLIES LTD,Public Health,Director of Public Health,Educational Equipment,,11/06/15,671.01,,Education
5200217,SICO EUROPE LIMITED,Asset Management and Investment Partnership Management,Director of Place,Adaptations - Small Jobs,,24/06/15,1459.00,,"Works - Construction, Repair & Maintenance"
5200233,FUTUREGOV,Governance,Director of Governance and Resources,Training Course Costs,,17/06/15,578.85,,Human Resources
5200235,TURNING POINT SERVICES LTD,Adult Social Care,Director of People,Independent Sector Care Fees,,01/06/15,46566.66,,Social Community Care
5200236,VYSIONICS ITS LTD,Environmental Services,Director of Place,General Materials,,23/06/15,21249.00,,Unclassified
5200237,MRL HEALTHCARE LIMITED,Adult Social Care,Director of People,Homecare Fees,,01/06/15,19215.00,,Social Community Care Supplies & Services
5200240,WILLIAMS WOODWARD LTD,Finance,Director of Governance and Resources,Professional Consultancy Services,,08/06/15,2490.00,,Unclassified
5200242,YORKSHIRE PURCHASING ORGANISATION,Public Health,Director of Public Health,Educational Equipment,,11/06/15,1947.60,,Education
5200250,CYCLESCHEME LTD,Multiple Heads of Service,Multiple Strategic Directorates,General Equipment Purchase,,01/06/15,622.50,,Unclassified
5200260,NEW BRIDGE HORIZONS,Adult Social Care,Director of People,Homecare Fees,,23/06/15,1634.50,,Social Community Care Supplies & Services
5200261,NEW BRIDGE HORIZONS,Adult Social Care,Director of People,Homecare Fees,,23/06/15,1751.25,,Social Community Care Supplies & Services
5200263,NEW BRIDGE HORIZONS,Adult Social Care,Director of People,Homecare Fees,,23/06/15,2101.50,,Social Community Care Supplies & Services
5200266,CROMWELL POLYTHENE LTD.,Environmental Services,Director of Place,Purchase Wheeled Bins,,29/06/15,902.50,,Unclassified
5200268,ROYAL MAIL GROUP PLC,Exchequer,Director of Governance and Resources,Postages,,01/06/15,1491.54,,Mail Services
5200273,CREATIVE SUPPORT LTD,Adult Social Care,Director of People,Homecare Fees,,10/06/15,13634.25,,Social Community Care Supplies & Services
5200278,LIVERPOOL JOHN MOORES UNIVERSITY,Public Health,Director of Public Health,Professional Services,,01/06/15,19850.00,,Unclassified
5200279,ABLE COMMUNITY CARE,Adult Social Care,Director of People,Homecare Fees,,10/06/15,1308.15,,Social Community Care Supplies & Services
5200282,JW AND R WRIGHT AND SONS,Development Growth & Investment,Director of Place,General Materials,,29/06/15,1047.57,,Horticultural
5200290,PEARSON,Development Growth & Investment,Director of Place,Examination Fees,,03/06/15,664.95,,Education 
5200296,TRIBAL EDUCATION LTD,Education,Director of People,Computer Software Maintenance Costs,,01/06/15,525.00,,Information Communication Technology
5200298,TRIBAL EDUCATION LTD,Strategy & Early Intervention,Director of People,Professional Consultancy Services,,03/06/15,10800.00,,Information Communication Technology
5200298,TRIBAL EDUCATION LTD,Strategy & Early Intervention,Director of People,Training Course Costs,,03/06/15,2100.00,,Information Communication Technology
5200299,TRIBAL EDUCATION LTD,Strategy & Early Intervention,Director of People,Computer Software,,03/06/15,2000.00,,Information Communication Technology
5200303,THE FURNISHING SERVICE LTD,Stronger Communities,Director of People,Fixtures & Fittings Purchase,,01/06/15,803.39,,Furniture
5200321,HOMESTART TAMESIDE & OLDHAM,Public Health,Director of Public Health,Professional Services,,03/06/15,10416.67,,Social Community Care
5200322,HOMESTART TAMESIDE & OLDHAM,Public Health,Director of Public Health,Professional Services,,03/06/15,6250.00,,Social Community Care
5200323,POSITIVE STEPS OLDHAM,Strategy & Early Intervention,Director of People,Professional Services,,01/06/15,36986.30,,Unclassified
5200329,DR JANE MARIE HARVEY,Public Health,Director of Public Health,Professional Services,Business Payment,10/06/15,1920.00,,Consultancy
5200330,THE FURNISHING SERVICE LTD,Stronger Communities,Director of People,Fixtures & Fittings Purchase,,01/06/15,771.45,,Furniture
5200341,THE FURNISHING SERVICE LTD,Stronger Communities,Director of People,Fixtures & Fittings Purchase,,01/06/15,537.54,,Furniture
5200342,THE BLACKBURN PRODUCTS CO LTD,Environmental Services,Director of Place,Waste Disposal Fees,,01/06/15,520.00,,Environmental Services
5200346,ARCO LIMITED,Environmental Services,Director of Place,General Materials,,10/06/15,558.36,,Clothing
5200350,ROYAL MAIL GROUP PLC,Exchequer,Director of Governance and Resources,Postages,,01/06/15,1675.33,,Mail Services
5200360,RANDSTAD EDUCATION LIMITED,Education,Director of People,Teachers Supply,,08/06/15,650.00,,Education 
5200362,CREATIVE SUPPORT LTD,Adult Social Care,Director of People,Homecare Fees,,01/06/15,15126.50,,Social Community Care Supplies & Services
5200374,RANDSTAD EDUCATION LIMITED,Education,Director of People,Teachers Supply,,08/06/15,520.00,,Education 
5200384,ASCO EDUCATIONAL SUPPLIES LTD,Public Health,Director of Public Health,Educational Equipment,,03/06/15,1223.75,,Education
5200386,FFT EDUCATION LTD,Education,Director of People,Subscriptions,,03/06/15,13910.00,,Education
5200393,POSTURITE (UK) LIMITED,Exchequer,Director of Governance and Resources,General Equipment Purchase, ,08/06/15,757.60,,Health and Safety
5200394,COMMUNITY AND VOLUNTARY ACTION TAMESIDE,Adult Social Care,Director of People,Cash Grants,,03/06/15,17070.00,,Unclassified
5200397,VISION FOR EDUCATION LIMITED,Education,Director of People,Teachers Supply,,08/06/15,900.00,,Education
5200419,CROMWELL POLYTHENE LTD.,Environmental Services,Director of Place,Purchase Wheeled Bins,,29/06/15,3535.00,,Unclassified
5200420,NORTH WEST COMMUNITY  SERVICES (GTR M/CR) LTD,Adult Social Care,Director of People,Homecare Fees,,10/06/15,11048.80,,Social Community Care Supplies & Services
5200425,ARGOS BUSINESS SOLUTIONS,Childrens Services,Director of People,Cash Grants,,03/06/15,523.27,,Unclassified
5200427,ORANGE PCS,Digital Tameside,Director of Place,Telephone Landline Costs,,08/06/15,980.00,,Information Communication Technology
5200434,COMMUNITY AND VOLUNTARY ACTION TAMESIDE,Stronger Communities,Director of People,Professional Services,,08/06/15,34000.00,,Financial Services
5200435,CARRICK SIGNS LTD,Governance,Director of Governance and Resources,Printing And Stationery,,03/06/15,1700.00,,Building Construction Materials
5200439,RANDSTAD EDUCATION LIMITED,Education,Director of People,Teachers Supply,,08/06/15,520.00,,Education 
5200441,RANDSTAD EDUCATION LIMITED,Education,Director of People,Teachers Supply,,08/06/15,840.00,,Education 
5200446,CARRICK SIGNS LTD,Governance,Director of Governance and Resources,Printing And Stationery,,03/06/15,578.00,,Building Construction Materials
5200447,CARRICK SIGNS LTD,Governance,Director of Governance and Resources,Printing And Stationery,,03/06/15,630.00,,Building Construction Materials
5200466,TROJAN LTD,Exchequer,Director of Governance and Resources,Subscriptions,,17/06/15,1000.00,,Unclassifiable
5200467,TUNSTALL HEALTHCARE (UK) LTD,Adult Social Care,Director of People,It Equipment,,03/06/15,5983.00,,Social Community Care
5200468,SMALL THINGS CREATIVE PROJECTS CIC,Public Health,Director of Public Health,Professional Entertainment Services,,03/06/15,4000.00,,Social Community Care Supplies & Services
5200471,AR ENTERTAINMENTS,Stronger Communities,Director of People,Professional Entertainment Services,,25/06/15,1355.00,,Leisure Services
5200476,VODAFONE,Childrens Services,Director of People,Telephone Landline Costs,,03/06/15,541.71,,Information Communication Technology
5200501,THE FURNISHING SERVICE LTD,Stronger Communities,Director of People,Fixtures & Fittings Purchase,,15/06/15,1217.99,,Furniture
5200502,THE FURNISHING SERVICE LTD,Adult Social Care,Director of People,Fixtures & Fittings Purchase,,01/06/15,1806.47,,Furniture
5200503,ADULLAM HOMES HOUSING ASSOC LTD,Stronger Communities,Director of People,Supporting People Gross Contract,,03/06/15,9098.16,,Social Community Care Supplies & Services
5200506,PENNINE CARE NHS TRUST,Adult Social Care,Director of People,Professional Services,,01/06/15,7296.00,,Medical
5200513,ROGER HANNAH & CO,Asset & Investment Partnership Management,Director of Place,Building Maintenance,,08/06/15,2383.30,,Legal Services
5200515,STOCKPORT MBC,Adult Services,Director of People,General Expenditure,,15/06/15,13535.00,,Unclassified
5200519,CARE UK HOMECARE,Adult Social Care,Director of People,Homecare Fees,,17/06/15,36113.81,,Social Community Care Supplies & Services
5200520,CARE UK HOMECARE,Adult Social Care,Director of People,Homecare Fees,,17/06/15,34982.83,,Social Community Care Supplies & Services
5200527,DOMAIN CARE NORTH WEST LTD,Adult Social Care,Director of People,Homecare Fees,,23/06/15,900.47,,Social Community Care Supplies & Services
5200538,JEFFERIES SOLICITORS LIMITED,Multiple Heads of Service,Multiple Strategic Directorates,Claims Settled,,17/06/15,2500.00,,Legal Services
5200540,WILLIAMS WOODWARD LTD,Finance,Director of Governance and Resources,Professional Consultancy Services,,08/06/15,3320.00,,Unclassified
5200543,ROCOM,Multiple Heads of Service,Multiple Strategic Directorates,Communications Equipment,,03/06/15,9800.00,,Information Communication Technology
5200545,DOMAIN CARE NORTH WEST LTD,Adult Social Care,Director of People,Homecare Fees,,23/06/15,2140.00,,Social Community Care Supplies & Services
5200563,STREETDANCE AND FITNESS,Education,Director of People,Professional Services,,08/06/15,600.00,,Leisure services
5200574,SCOPE,Education,Director of People,Voluntary Organisations Fees,,29/06/15,14718.72,,Unclassified
5200580,PEARSON,Education,Director of People,Examination Fees, ,08/06/15,539.70,,Education 
5200582,RANDSTAD EDUCATION LIMITED,Education,Director of People,Teachers Supply,,08/06/15,840.00,,Education 
5200585,AON LIMITED,Multiple Heads of Service,Corporate Costs,Employee Insurance,,17/06/15,10282.00,,Human Resources
5200592,CARE UK HOMECARE,Adult Social Care,Director of People,Homecare Fees,,17/06/15,35737.11,,Social Community Care Supplies & Services
5200595,DOMAIN CARE NORTH WEST LTD,Adult Social Care,Director of People,Homecare Fees,,23/06/15,799.50,,Social Community Care Supplies & Services
5200608,GORVINS SOLICITORS,Multiple Heads of Service,Multiple Strategic Directorates,Claims Settled,,18/06/15,11000.00,,Legal Services
5200618,INSPIREDSPACES TAMESIDE LTD,Asset Management and Investment Partnership Management,Director of Place,Computer Software,,08/06/15,1974.00,,Consultancy
5200618,INSPIREDSPACES TAMESIDE LTD,Asset Management and Investment Partnership Management,Director of Place,Electrical Works,,08/06/15,8169.50,,Consultancy
5200618,INSPIREDSPACES TAMESIDE LTD,Asset Management and Investment Partnership Management,Director of Place,Other Works,,08/06/15,508648.60,,Consultancy
5200622,INSPIREDSPACES TAMESIDE LTD,Asset & Investment Partnership Management,Director of Place,Cleaning Contractor Costs,,08/06/15,345523.08,,Consultancy
5200622,INSPIREDSPACES TAMESIDE LTD,Asset & Investment Partnership Management,Director of Place,Professional Services,,08/06/15,80900.00,,Consultancy
5200622,INSPIREDSPACES TAMESIDE LTD,Asset & Investment Partnership Management,Director of Place,Refreshments,,08/06/15,62448.89,,Consultancy
5200629,TAMESIDE SPORTS TRUST,Multiple Heads of Service,Multiple Strategic Directorates,Fees, ,08/06/15,118500.00,,Leisure Services
5200640,TAMESIDE SPORTS TRUST,Childrens Services,Director of People,Fees, ,03/06/15,1800.00,,Leisure Services
5200641,VALUATION OFFICE AGENCY,Development Growth & Investment,Director of Place,Professional Services,,10/06/15,2002.61,,Unclassifiable
5200645,TAMESIDE SPORTS TRUST,Childrens Services,Director of People,Fees, ,03/06/15,3294.00,,Leisure Services
5200646,Freshdesk Inc,Digital Tameside,Director of Place,Computer Software, ,03/06/15,2088.00,,Information Communication Technology
5200648,TAMESIDE SPORTS TRUST,Public Health,Director of Public Health,Other Accomodation Related Costs,,29/06/15,732.12,,Leisure Services
5200650,DWYERS SOLICITORS,Multiple Heads of Service,Multiple Strategic Directorates,Claims Settled,,04/06/15,10883.82,,Legal Services
5200654,COMPLETE BACKGROUND SCREENING LTD,Governance,Director of Governance and Resources,Professional Services,,10/06/15,2096.00,,Unclassifiable
5200657,DWP,Multiple Heads of Service,Multiple Strategic Directorates,Claims Settled,,03/06/15,627.00,,Unclassifiable
5200661,ADAPTACARE LTD,Housing,Director of Place,Improvement Grants - Final Mandatory,,03/06/15,4680.00,,Social Community Care Supplies & Services
5200663,MOSSLEY PRIVATE HIRE,Education,Director of People,Transport Of Pupils,,03/06/15,1000.00,,Unclassifiable
5200664,LOCAL GOVERNMENT ASSOCIATION,Multiple Heads of Service,Corporate Costs,Subscriptions,,17/06/15,34283.60,,Unclassified
5200673,PATROL,Environmental Services,Director of Place,Court Fees,,10/06/15,4006.20,,Unclassifiable
5200674,LAVAT CONSULTING LIMITED,Multiple Heads of Service,Corporate Costs,Professional Services,,04/06/15,675.00,,Consultancy
5200675,LAVAT CONSULTING LIMITED,Multiple Heads of Service,Corporate Costs,Professional Services,,04/06/15,1530.00,,Consultancy
5200676,LAVAT CONSULTING LIMITED,Multiple Heads of Service,Corporate Costs,Professional Services,,04/06/15,2550.00,,Consultancy
5200679,MOSSLEY PRIVATE HIRE,Education,Director of People,Transport Of Pupils,,03/06/15,1375.00,,Unclassifiable
5200681,LIME TRAVEL,Education,Director of People,Transport Of Ola Pupils,,03/06/15,1025.00,,Human Resources
5200684,RUTH COPPARD,Education,Director of People,Professional Services,Business Payment,03/06/15,3200.00,,Consultancy
5200686,REDDIPAK LIMITED,Environmental Services,Director of Place,General Materials,,08/06/15,1048.00,,Unclassifiable
5200687,REDDIPAK LIMITED,Environmental Services,Director of Place,General Materials,,08/06/15,1048.00,,Unclassifiable
5200688,ZURICH INSURANCE PLC,Multiple Heads of Service,Multiple Strategic Directorates,Prem : Engineering Insurance,,04/06/15,1932.02,,Unclassifiable
5200689,REDDIPAK LIMITED,Environmental Services,Director of Place,General Materials,,08/06/15,1048.00,,Unclassifiable
5200693,ABLE CARE AND SUPPORT SERVICES LTD,Adult Social Care,Director of People,Homecare Fees,,03/06/15,1876.91,,Social Community Care Supplies & Services
5200695,ABLE CARE AND SUPPORT SERVICES LTD,Adult Social Care,Director of People,Homecare Fees,,03/06/15,1838.33,,Social Community Care Supplies & Services
5200697,ABLE CARE AND SUPPORT SERVICES LTD,Adult Social Care,Director of People,Homecare Fees,,03/06/15,1735.76,,Social Community Care Supplies & Services
5200698,ZURICH INSURANCE PLC,Multiple Heads of Service,Multiple Strategic Directorates,Prem : Engineering Inspection,,08/06/15,105614.58,,Unclassifiable
5200699,MR JAMES TURLEY T/A R TURLEY PLUMBERS,Housing,Director of Place,Improvement Grants - Final Mandatory,Business Payment,03/06/15,4150.00,,"Works - Construction, Repair & Maintenance"
5200707,RADIO CABS (ASHTON)LTD,Education,Director of People,Transport Of Ola Pupils,,03/06/15,1436.40,,Unclassified
5200710,RADIO CABS (ASHTON)LTD,Education,Director of People,Transport Of Pupils,,03/06/15,1034.00,,Unclassified
5200711,GREG EGAN,Education,Director of People,Additional Hire,Business Payment,10/06/15,3000.00,,Unclassified
5200713,RADIO CABS (ASHTON)LTD,Education,Director of People,Transport Of Ola Pupils,,03/06/15,691.20,,Unclassified
5200714,RADIO CABS (ASHTON)LTD,Education,Director of People,Transport Of Pupils,,03/06/15,1034.00,,Unclassified
5200716,RADIO CABS (ASHTON)LTD,Education,Director of People,Transport Of Pupils,,03/06/15,765.60,,Unclassified
5200720,FENTONS MINIBUSES LTD,Education,Director of People,Transport Of Ola Pupils,,03/06/15,875.50,,Transport
5200721,FENTONS TAXIS,Education,Director of People,Transport Of Pupils,,03/06/15,913.00,,Unclassified
5200722,W A MEADOWCROFT,Education,Director of People,Transport Of Pupils,Business Payment,03/06/15,630.00,,Unclassifiable
5200723,ROYALE MINICOACHES,Education,Director of People,Transport Of Pupils,,03/06/15,1100.00,,Unclassifiable
5200724,RADIO CABS (ASHTON)LTD,Education,Director of People,Transport Of Ola Pupils,,03/06/15,842.60,,Unclassified
5200726,SEASHELL TRUST,Education,Director of People,Voluntary Organisations Fees,,29/06/15,18428.10,,Social Community Care Supplies & Services
5200731,TRIBAL EDUCATION LTD,Education,Director of People,Computer Software Maintenance Costs,,10/06/15,525.00,,Information Communication Technology
5200732,TRIBAL EDUCATION LTD,Education,Director of People,Computer Software Maintenance Costs,,25/06/15,6000.00,,Information Communication Technology
5200739,SECURE A FIELD,Engineers Client,Director of Place,Highway Construction,,08/06/15,529.00,,"Works - Construction, Repair & Maintenance"
5200740,JOHNNIE JOHNSON HOUSING  TRUST,Stronger Communities,Director of People,Supporting People Gross Contract,,11/06/15,5071.00,,Social Community Care Supplies & Services
5200743,ABLE COMMUNITY CARE,Adult Social Care,Director of People,Homecare Fees,,10/06/15,1580.00,,Social Community Care Supplies & Services
5200746,DENTON LINKS,Education,Director of People,Transport Of Ola Pupils,,03/06/15,1670.00,,Unclassified
5200747,DENTON LINKS,Education,Director of People,Transport Of Ola Pupils,,03/06/15,1610.00,,Unclassified
5200748,DENTON LINKS,Education,Director of People,Transport Of Ola Pupils,,03/06/15,1050.00,,Unclassified
5200749,DENTON LINKS,Education,Director of People,Transport Of Ola Pupils,,03/06/15,3674.00,,Unclassified
5200750,DENTON LINKS,Education,Director of People,Transport Of Ola Pupils,,03/06/15,2300.00,,Unclassified
5200751,DENTON LINKS,Education,Director of People,Transport Of Ola Pupils,,03/06/15,1500.00,,Unclassified
5200752,ORANGE PCS,Digital Tameside,Director of Place,Mobile Telephones,,08/06/15,2479.21,,Information Communication Technology
5200753,RADIO CABS (ASHTON)LTD,Education,Director of People,Transport Of Pupils,,03/06/15,567.60,,Unclassified
5200754,RADIO CABS (ASHTON)LTD,Education,Director of People,Transport Of Pupils,,03/06/15,1080.00,,Unclassified
5200757,RADIO CABS (ASHTON)LTD,Education,Director of People,Transport Of Pupils,,03/06/15,880.00,,Unclassified
5200758,RANDSTAD EDUCATION LIMITED,Education,Director of People,Teachers Supply,,17/06/15,1050.00,,Education 
5200759,RADIO CABS (ASHTON)LTD,Education,Director of People,Transport Of Pupils,,03/06/15,1034.00,,Unclassified
5200760,RADIO CABS (ASHTON)LTD,Education,Director of People,Transport Of Post 16 Pupils,,03/06/15,747.90,,Unclassified
5200763,RADIO CABS (ASHTON)LTD,Education,Director of People,Transport Of Post 16 Pupils,,03/06/15,973.20,,Unclassified
5200767,RADIO CABS (ASHTON)LTD,Education,Director of People,Transport Of Ola Pupils,,03/06/15,1060.00,,Unclassified
5200768,G M GREEN,Education,Director of People,Transport Of Pupils,Business Payment,03/06/15,770.00,,Social Community Care Supplies & Services
5200773,MOSSLEY PRIVATE HIRE,Asset & Investment Partnership Management,Director of Place,Hired Transport,,03/06/15,630.00,,Unclassified
5200807,DAISY COMMUNICATIONS LTD,Multiple Heads of Service,Multiple Strategic Directorates,Telephone Landline Costs,,03/06/15,5067.45,,Information Communication Technology
5200816,BARNARDOS,Childrens Services,Director of People,Text Books Periodicals and Newspapers,,03/06/15,12375.00,,Social Community Care
5200822,MO WHITTLE,Childrens Services,Director of People,Inspection Fees,Business Payment,08/06/15,2170.91,,Consultancy
5200823,POSTURITE (UK) LIMITED,Environmental Services,Director of Place,Purchase General Office Equipment,,03/06/15,566.60,,Health and Safety
5200824,CHILD POVERTY ACTION GROUP,Stronger Communities,Director of People,Training Course Costs,,03/06/15,1251.60,,Social Community Care
5200826,NORTH WEST EMPLOYERS,Governance,Director of Governance and Resources,Training Course Costs,,03/06/15,15000.00,,Human Resources
5200831,STOCKPORT NHS FOUNDATION TRUST,Education,Director of People,Professional Services,,08/06/15,3333.00,,Medical
5200840,CARRICK SIGNS LTD,Governance,Director of Governance and Resources,Printing And Stationery,,08/06/15,2490.00,,Building Construction Materials
5200841,STOCKPORT NHS FOUNDATION TRUST,Strategy & Early Intervention,Director of People,Professional Services,,03/06/15,2544.90,,Medical
5200842,,Childrens Services,Director of People,Placement with Relative or Friend In LA,Redacted Supplier,03/06/15,759.50,,Unclassifiable
5200847,JOHN PACKER LIMITED,Education,Director of People,Educational Equipment,,03/06/15,1000.00,,Social Community Care
5200852,CORE INTEGRATED SOLUTIONS LTD,Multiple Heads of Service,Multiple Strategic Directorates,Communications Equipment,,03/06/15,917.00,,Information Communication Technology
5200854,CORE INTEGRATED SOLUTIONS LTD,Multiple Heads of Service,Multiple Strategic Directorates,Communications Equipment,,03/06/15,7801.00,,Information Communication Technology
5200864,UNIVERSITY OF SALFORD,Development Growth & Investment,Director of Place,Professional Services,,03/06/15,3525.00,,Unclassifiable
5200865,PHONICS-4-SUCCESS,Education,Director of People,Training Course Costs,,10/06/15,1500.00,,Education 
5200876,FIRST COAT DECORATORS,Adult Social Care,Director of People,Fixtures & Fittings Purchase,,10/06/15,795.00,,Furniture
5200878,GRANT THORNTON UK LLP,Multiple Heads of Service,Corporate Costs,Professional Services,,03/06/15,5000.00,,Financial Services
5200879,ORANGE PCS,Digital Tameside,Director of Place,Mobile Telephones,,08/06/15,605.07,,Information Communication Technology
5200882,ORANGE PCS,Digital Tameside,Director of Place,Mobile Telephones,,08/06/15,2751.95,,Information Communication Technology
5200883,PROVIDENCE FURNITURE,Adult Social Care,Director of People,Fixtures & Fittings Purchase,,11/06/15,550.00,,Furniture
5200886,G4S CASH SOLUTIONS (UK) LIMITED,Environmental Services,Director of Place,Security Services,,03/06/15,55.97,,Facilities & Management Services
5200886,G4S CASH SOLUTIONS (UK) LIMITED,Governance,Director of Governance and Resources,Security Services,,03/06/15,55.97,,Facilities & Management Services
5200886,G4S CASH SOLUTIONS (UK) LIMITED,Stronger Communities,Director of People,Security Services,,03/06/15,447.73,,Facilities & Management Services
5200892,ULVERSCROFT LARGE PRINT  BOOKS LTD,Stronger Communities,Director of People,Purchase Books,,03/06/15,1428.80,,Education 
5200895,BT PLC,Multiple Heads of Service,Multiple Strategic Directorates,Telephone Landline Costs,,03/06/15,540.00,,Information Communication Technology
5200905,BT PLC,Multiple Heads of Service,Multiple Strategic Directorates,Telephone Landline Costs,,03/06/15,2557.56,,Information Communication Technology
5200935,ASHTON BROTHERS ANGLING CLUB,Stronger Communities,Director of People,Professional Entertainment Services,,03/06/15,500.00,,Charities and Voluntary Organisations
5200941,CHILDREN 4 MOST @ HYDE FLOWERY,Multiple Heads of Service,Multiple Strategic Directorates,Grants,,10/06/15,12288.00,,Unclassifiable
5200963,BROADWAY BUILDING CONTRACTORS (OLDHAM) LTD,Housing,Director of Place,Improvement Grants - Final Mandatory,,11/06/15,1830.00,,"Works - Construction, Repair & Maintenance"
5200964,PLATINUM STAIRLIFTS LIMITED,Housing,Director of Place,Improvement Grants - Final Mandatory,,11/06/15,3200.00,,Social Community Care Supplies & Services
5200965,PLATINUM STAIRLIFTS LIMITED,Housing,Director of Place,Improvement Grants - Final Mandatory,,11/06/15,4587.50,,Social Community Care Supplies & Services
5200966,PLATINUM STAIRLIFTS LIMITED,Housing,Director of Place,Improvement Grants - Final Mandatory,,10/06/15,1448.75,,Social Community Care Supplies & Services
5200968,K P DODD CONSTRUCTION LTD,Housing,Director of Place,Improvement Grants - Final Mandatory,,08/06/15,4551.00,,"Works - Construction, Repair & Maintenance"
5200971,PLATINUM STAIRLIFTS LIMITED,Housing,Director of Place,Improvement Grants - Final Mandatory,,11/06/15,1948.75,,Social Community Care Supplies & Services
5200972,PLATINUM STAIRLIFTS LIMITED,Housing,Director of Place,Improvement Grants - Final Mandatory,,11/06/15,1673.75,,Social Community Care Supplies & Services
5200975,MRL HEALTHCARE LIMITED,Adult Social Care,Director of People,Homecare Fees,,10/06/15,19215.00,,Social Community Care Supplies & Services
5200978,SIMON NEIGHBOUR,Environmental Services,Director of Place,Training Course Costs,Business Payment,08/06/15,600.00,,Human Resources
5200985,HMCTS - NORTHAMPTON COUNTY COURT,Environmental Services,Director of Place,Court Fees,,10/06/15,6000.00,,Non 3rd Party spend  
5200988,R-COM CONSULTING LTD,Multiple Heads of Service,Multiple Strategic Directorates,Communications Equipment,,04/06/15,21710.00,,Information Communication Technology
5200990,ORANGE PCS,Digital Tameside,Director of Place,Mobile Telephones,,08/06/15,5022.93,,Information Communication Technology
5201004,,Childrens Services,Director of People,Cash Grants,Redacted Supplier,08/06/15,4124.20,,Unclassified
5201005,,Childrens Services,Director of People,Cash Grants,Redacted Supplier,08/06/15,4032.06,,Unclassified
5201007,,Childrens Services,Director of People,Cash Grants,Redacted Supplier,08/06/15,3947.50,,Unclassified
5201008,,Childrens Services,Director of People,Cash Grants,Redacted Supplier,08/06/15,3947.50,,Unclassified
5201009,,Multiple Heads of Service,Multiple Strategic Directorates,Claims Settled,Redacted Supplier,04/06/15,500.00,,Unclassifiable
5201013,,Childrens Services,Director of People,Living Without Formal Support,Redacted Supplier,08/06/15,535.00,,Unclassifiable
5201034,WE SOLICITORS LLP,Multiple Heads of Service,Multiple Strategic Directorates,Claims Settled,,08/06/15,21718.74,,Legal Services
5201040,BERTRAM LIBRARY SERVICES,Stronger Communities,Director of People,Purchase Books,,10/06/15,8755.83,,Education
5201049,,Adult Social Care,Director of People,Contribution to Maintenance Fee Income,Redacted Supplier,08/06/15,1138.14,,Unclassified
5201052,,Adult Social Care,Director of People,Contribution to Maintenance Fee Income,Redacted Supplier,08/06/15,1267.90,,Unclassified
5201055,ON365,Multiple Heads of Service,Multiple Strategic Directorates,Communications Equipment,,18/06/15,2530.50,,Information Communication Technology
5201059,VICKI HAMILTON,Childrens Services,Director of People,Professional Services,Business Payment,10/06/15,763.15,,Consultancy
5201064,VODAFONE,Asset & Investment Partnership Management,Director of Place,Telephone Landline Costs,,17/06/15,834.30,,Information Communication Technology
5201066,VODAFONE,Asset & Investment Partnership Management,Director of Place,Telephone Landline Costs,,17/06/15,859.46,,Information Communication Technology
5201067,UPDATA INFRASTRUCTURE UK LTD,Multiple Heads of Service,Multiple Strategic Directorates,Communications Equipment,,04/06/15,2183.00,,Information Communication Technology
5201079,PROFILE SECURITY SERVICES LIMITED,Asset & Investment Partnership Management,Director of Place,Security Services,,04/06/15,6813.18,,Facilities & Management Services
5201080,PROFILE SECURITY SERVICES LIMITED,Asset & Investment Partnership Management,Director of Place,Security Services,,04/06/15,9266.40,,Facilities & Management Services
5201081,PROFILE SECURITY SERVICES LIMITED,Asset & Investment Partnership Management,Director of Place,Security Services,,04/06/15,1291.70,,Facilities & Management Services
5201087,RANDSTAD EDUCATION LIMITED,Education,Director of People,Teachers Supply,,17/06/15,1050.00,,Education
5201097,J P KELSEY PLUMBING & HEATING LTD,Housing,Director of Place,Improvement Grants - Final Mandatory,,10/06/15,3860.00,,Building Construction Materials
5201098,J P KELSEY PLUMBING & HEATING LTD,Housing,Director of Place,Improvement Grants - Final Mandatory,,10/06/15,4204.00,,Building Construction Materials
5201099,RED ARCHITECTURAL PENSION  SCHEME,Asset & Investment Partnership Management,Director of Place,Building Maintenance,,08/06/15,10956.16,,Facilities & Management Services
5201101,RANDSTAD EDUCATION LIMITED,Education,Director of People,Teachers Supply,,17/06/15,650.00,,Education
5201103,HARVEY BURROUGHS,Adult Services,Director of People,General Expenditure,,15/06/15,750.00,,Social Community Care 
5201119,VODAFONE,Asset & Investment Partnership Management,Director of Place,Telephone Landline Costs,,17/06/15,798.70,,Information Communication Technology
5201127,UNITED UTILITIES WATER PLC,Asset & Investment Partnership Management,Director of Place,Metered Water Costs,,08/06/15,1150.39,,Utilities
5201128,INSPIREDSPACES TAMESIDE LTD,Asset & Investment Partnership Management,Director of Place,Agency Staff,,08/06/15,77769.62,,Consultancy
5201128,INSPIREDSPACES TAMESIDE LTD,Asset & Investment Partnership Management,Director of Place,Building Maintenance,,08/06/15,122380.78,,Consultancy
5201128,INSPIREDSPACES TAMESIDE LTD,Asset & Investment Partnership Management,Director of Place,Cleaning Materials,,08/06/15,2024.61,,Consultancy
5201128,INSPIREDSPACES TAMESIDE LTD,Asset & Investment Partnership Management,Director of Place,Hire Of Rooms,,08/06/15,-15739.50,,Unclassifiable
5201128,INSPIREDSPACES TAMESIDE LTD,Asset & Investment Partnership Management,Director of Place,Refreshments,,08/06/15,37018.17,,Consultancy
5201130,UNITED UTILITIES WATER PLC,Asset & Investment Partnership Management,Director of Place,Metered Water Costs,,08/06/15,546.03,,Utilities
5201131,UNITED UTILITIES WATER PLC,Asset & Investment Partnership Management,Director of Place,Metered Water Costs,,08/06/15,1772.46,,Utilities
5201141,UNITED UTILITIES WATER PLC,Asset & Investment Partnership Management,Director of Place,Metered Water Costs,,08/06/15,607.85,,Utilities
5201143,UNITED UTILITIES WATER PLC,Asset & Investment Partnership Management,Director of Place,Metered Water Costs,,08/06/15,2462.02,,Utilities
5201152,UNITED UTILITIES WATER PLC,Asset & Investment Partnership Management,Director of Place,Metered Water Costs,,08/06/15,886.88,,Utilities
5201153,BBT GROUP,Education,Director of People,Photo Print Charges,,08/06/15,596.95,,Unclassifiable
5201159,QUALITY 4 EARLY YEARS,Governance,Director of Governance and Resources,Training Course Costs,,10/06/15,680.00,,Human Resources
5201162,FREECLAIM SOLICITORS,Multiple Heads of Service,Multiple Strategic Directorates,Claims Settled,,08/06/15,1400.00,,Legal Services
5201169,CORONA ENERGY RETAIL 4 LIMITED,Asset & Investment Partnership Management,Director of Place,Gas,,08/06/15,690.16,,Utilities
5201170,CORONA ENERGY RETAIL 4 LIMITED,Asset & Investment Partnership Management,Director of Place,Gas,,08/06/15,685.43,,Utilities
5201172,TAMESIDE TRAINING CONSORTIUM,Governance,Director of Governance and Resources,Training Course Costs,,10/06/15,570.00,,Human Resources
5201176,ANN POTTER TRAINING AND CONSULTANCY LTD,Governance,Director of Governance and Resources,Training Course Costs,,15/06/15,1275.00,,Human Resources
5201178,CORONA ENERGY RETAIL 4 LIMITED,Asset & Investment Partnership Management,Director of Place,Gas,,08/06/15,590.14,,Utilities
5201179,ANN POTTER TRAINING AND CONSULTANCY LTD,Governance,Director of Governance and Resources,Training Course Costs,,15/06/15,2025.00,,Human Resources
5201180,CORONA ENERGY RETAIL 4 LIMITED,Asset & Investment Partnership Management,Director of Place,Gas,,08/06/15,1364.38,,Utilities
5201185,CORONA ENERGY RETAIL 4 LIMITED,Asset & Investment Partnership Management,Director of Place,Gas,,08/06/15,696.90,,Utilities
5201188,CORONA ENERGY RETAIL 4 LIMITED,Asset & Investment Partnership Management,Director of Place,Gas,,08/06/15,909.49,,Utilities
5201194,CORONA ENERGY RETAIL 4 LIMITED,Asset & Investment Partnership Management,Director of Place,Gas,,08/06/15,2396.83,,Utilities
5201197,CORONA ENERGY RETAIL 4 LIMITED,Asset & Investment Partnership Management,Director of Place,Gas,,08/06/15,3022.78,,Utilities
5201201,CORONA ENERGY RETAIL 4 LIMITED,Asset & Investment Partnership Management,Director of Place,Gas,,08/06/15,503.45,,Utilities
5201206,CORONA ENERGY RETAIL 4 LIMITED,Asset & Investment Partnership Management,Director of Place,Gas,,08/06/15,1700.65,,Utilities
5201207,CORONA ENERGY RETAIL 4 LIMITED,Asset & Investment Partnership Management,Director of Place,Gas,,08/06/15,1384.54,,Utilities
5201209,CORONA ENERGY RETAIL 4 LIMITED,Asset & Investment Partnership Management,Director of Place,Gas,,08/06/15,609.51,,Utilities
5201213,ANN FITZPATRICK,Governance,Director of Governance and Resources,Training Course Costs,Business Payment,10/06/15,600.00,,Human Resources
5201219,ANN FITZPATRICK,Governance,Director of Governance and Resources,Training Course Costs,Business Payment,10/06/15,600.00,,Human Resources
5201221,ANN FITZPATRICK,Governance,Director of Governance and Resources,Training Course Costs,Business Payment,10/06/15,600.00,,Human Resources
5201223,CORONA ENERGY RETAIL 4 LIMITED,Asset & Investment Partnership Management,Director of Place,Gas,,08/06/15,3991.65,,Utilities
5201228,CORONA ENERGY RETAIL 4 LIMITED,Asset & Investment Partnership Management,Director of Place,Gas,,08/06/15,1850.04,,Utilities
5201238,CORONA ENERGY RETAIL 4 LIMITED,Asset & Investment Partnership Management,Director of Place,Gas,,08/06/15,778.90,,Utilities
5201240,CORONA ENERGY RETAIL 4 LIMITED,Asset & Investment Partnership Management,Director of Place,Gas,,08/06/15,606.75,,Utilities
5201248,CORONA ENERGY RETAIL 4 LIMITED,Asset & Investment Partnership Management,Director of Place,Gas,,08/06/15,935.26,,Utilities
5201251,NPOWER LIMITED,Environmental Services,Director of Place,Electricity,,08/06/15,192449.35,,Utilities
5201252,WILLOW WOOD HOSPICE,Adult Social Care,Director of People,Independent Sector Care Fees,,15/06/15,3494.82,,Social Community Care
5201253,CBS (NORTH WEST) LTD,Environmental Services,Director of Place,Engineers Works,,10/06/15,1664.40,,"Works - Construction, Repair & Maintenance"
5201256,T.G.W MECHANICAL SERVICES LIMITED,Cultural and Customer Services,Director of People,Adaptations - Small Jobs,,11/06/15,5000.00,,Social Community Care
5201259,CBS (NORTH WEST) LTD,Environmental Services,Director of Place,Engineers Works,,10/06/15,752.40,,"Works - Construction, Repair & Maintenance"
5201260,CBS (NORTH WEST) LTD,Environmental Services,Director of Place,Engineers Works,,10/06/15,780.00,,"Works - Construction, Repair & Maintenance"
5201261,TAMESIDE ARTS LTD,Adult Social Care,Director of People,Professional Services,,11/06/15,1071.00,,Social Community Care
5201262,CBS (NORTH WEST) LTD,Environmental Services,Director of Place,Engineers Works,,10/06/15,942.00,,"Works - Construction, Repair & Maintenance"
5201265,ATLAS TRADING GROUP LTD,Environmental Services,Director of Place,General Equipment Purchase,,10/06/15,2907.25,,Building Construction Materials
5201268,LAUREL BANK SUPPORT AT HOME,Adult Social Care,Director of People,Homecare Fees,,08/06/15,2502.89,,Social Community Care Supplies & Services
5201271,CBS (NORTH WEST) LTD,Environmental Services,Director of Place,Engineers Works,,10/06/15,1348.80,,"Works - Construction, Repair & Maintenance"
5201272,CBS (NORTH WEST) LTD,Environmental Services,Director of Place,General Materials,,08/06/15,873.00,,"Works - Construction, Repair & Maintenance"
5201279,MICHAEL W HALSALL SOLICITORS,Multiple Heads of Service,Multiple Strategic Directorates,Claims Settled,,08/06/15,3600.00,,Legal Services
5201285,NETWORK CONNECT LTD,Environmental Services,Director of Place,General Materials,,08/06/15,841.57,,Unclassified
5201286,STOCKPORT NHS FOUNDATION TRUST,Childrens Services,Director of People,Other Local Authority fees, ,08/06/15,1891.00,,Medical
5201287,MPS FABRICATIONS,Housing,Director of Place,Adaptations - Jobs <#500,,10/06/15,500.00,,"Works - Construction, Repair & Maintenance"
5201288,THE UNIVERSITY OF MANCHESTER,Adult Social Care,Director of People,Training Course Costs,,17/06/15,665.00,,Unclassifiable
5201293,HOWARD COOK,Education,Director of People,Professional Services,Business Payment,08/06/15,680.00,,Unclassifiable
5201296,RAYMOND C HARRISON BUILDERS,Housing,Director of Place,Improvement Grants - Final Mandatory,,10/06/15,5141.00,,"Works - Construction, Repair & Maintenance"
5201297,PRISM MEDICAL UK (CARE FREE DIVISION),Housing,Director of Place,Improvement Grants - Final Mandatory,,08/06/15,1670.61,,Medical
5201299,COMFORT CALL LIMITED,Adult Social Care,Director of People,Homecare Fees,,10/06/15,35106.60,,Social Community Care Supplies & Services
5201300,RAYMOND C HARRISON BUILDERS,Housing,Director of Place,Improvement Grants - Final Mandatory,,08/06/15,4456.00,,"Works - Construction, Repair & Maintenance"
5201303,HMCTS,Exchequer,Director of Governance and Resources,Postages,,10/06/15,3498.00,,Non 3rd Party spend  
5201304,HMCTS,Exchequer,Director of Governance and Resources,Postages,,10/06/15,4062.00,,Non 3rd Party spend  
5201306,HMCTS,Exchequer,Director of Governance and Resources,Postages,,10/06/15,5460.00,,Non 3rd Party spend  
5201308,DWP,Multiple Heads of Service,Multiple Strategic Directorates,Claims Settled,,08/06/15,637.00,,Unclassifiable
5201310,NEW CHARTER HOUSING TRUST GROUP,Adult Social Care,Director of People,Non-Authority Accommodation Rental,,08/06/15,2551.64,,Social Community Care Supplies & Services
5201311,COMFORT CALL LIMITED,Adult Social Care,Director of People,Homecare Fees,,08/06/15,33302.80,,Social Community Care Supplies & Services
5201312,TAMESIDE ARTS LTD,Adult Social Care,Director of People,Professional Services,,18/06/15,1071.00,,Social Community Care
5201314,LAUREL BANK SUPPORT AT HOME,Adult Social Care,Director of People,Homecare Fees,,08/06/15,2104.43,,Social Community Care Supplies & Services
5201315,DIRECT CARE (NORTH WEST) LTD,Adult Social Care,Director of People,Homecare Fees,,08/06/15,597.86,,Social Community Care Supplies & Services
5201316,COMMUNITY AND VOLUNTARY ACTION TAMESIDE,Stronger Communities,Director of People,Professional Services,,08/06/15,27693.00,,Financial Services
5201320,"TAMESIDE, OLDHAM AND GLOSSOP MIND",Adult Social Care,Director of People,Professional Services,,10/06/15,4896.00,,Social Community Care Supplies & Services
5201322,DIRECT CARE (NORTH WEST) LTD,Adult Social Care,Director of People,Homecare Fees,,10/06/15,10046.24,,Social Community Care Supplies & Services
5201324,NEW CHARTER HOUSING TRUST GROUP,Adult Social Care,Director of People,Non-Authority Accommodation Rental,,08/06/15,25101.09,,Social Community Care Supplies & Services
5201328,OFF THE RECORD,Public Health,Director of Public Health,Professional Services,,10/06/15,91840.00,,Social Community Care Supplies & Services
5201331,RAYMOND C HARRISON BUILDERS,Housing,Director of Place,Improvement Grants - Final Mandatory,,10/06/15,4318.00,,"Works - Construction, Repair & Maintenance"
5201334,MOSSCARE HOUSING LTD,Adult Social Care,Director of People,Non-Authority Accommodation Rental,,08/06/15,29403.59,,Housing Management
5201345,MOSSCARE HOUSING LTD,Adult Social Care,Director of People,Non-Authority Accommodation Rental,,10/06/15,29330.65,,Housing Management
5201348,HMRC,Multiple Heads of Service,Multiple Strategic Directorates,Tax Paid Sub Contractors,,10/06/15,16079.43,,Unclassified
5201350,HUGH MASON PROPERTIES LIMITED,Adult Social Care,Director of People,Non-Authority Accommodation Rental,,10/06/15,2207.18,,Facilities & Management Services
5201351,HUGH MASON PROPERTIES LIMITED,Adult Social Care,Director of People,Non-Authority Accommodation Rental,,10/06/15,2207.18,,Facilities & Management Services
5201352,HUGH MASON PROPERTIES LIMITED,Adult Social Care,Director of People,Non-Authority Accommodation Rental,,10/06/15,2471.40,,Facilities & Management Services
5201354,VILLAGE URBAN RESORTS,Education,Director of People,Room Hire,,08/06/15,895.83,,Human Resources
5201356,MRL HEALTHCARE LIMITED,Adult Social Care,Director of People,Homecare Fees,,10/06/15,1978.63,,Social Community Care Supplies & Services
5201358,NORTHERN PROPERTIES LTD,Adult Social Care,Director of People,Non-Authority Accommodation Rental,,10/06/15,1847.29,,Housing Management
5201360,CROFT INVESTMENTS LTD,Adult Social Care,Director of People,Non-Authority Accommodation Rental,,10/06/15,2024.61,,Social Community Care Supplies & Services
5201361,STAMFORD PROPERTIES,Adult Social Care,Director of People,Non-Authority Accommodation Rental,,10/06/15,1017.43,,Housing Management
5201362,HAMILTON PROPERTIES,Adult Social Care,Director of People,Non-Authority Accommodation Rental,,10/06/15,1575.20,,Housing Management
5201363,WESLEY PROPERTIES (NORTHERN) LTD,Adult Social Care,Director of People,Non-Authority Accommodation Rental,,10/06/15,1369.89,,Facilities & Management Services
5201364,STAMFORD PROPERTIES,Adult Social Care,Director of People,Non-Authority Accommodation Rental,,10/06/15,2552.73,,Unclassifiable
5201370,STREETDANCE AND FITNESS,Education,Director of People,Professional Services,,08/06/15,600.00,,Leisure services
5201372,CLASSIC MAINTENANCE,Environmental Services,Director of Place,General Equipment Repair & Maintenance,,08/06/15,500.00,,"Works - Construction, Repair & Maintenance"
5201379,RANDSTAD EDUCATION LIMITED,Education,Director of People,Teachers Supply,,17/06/15,995.00,,Education
5201381,RANDSTAD EDUCATION LIMITED,Education,Director of People,Teachers Supply,,08/06/15,575.00,,Education
5201384,RANDSTAD EDUCATION LIMITED,Education,Director of People,Teachers Supply,,08/06/15,630.00,,Education
5201401,NPOWER LIMITED,Asset & Investment Partnership Management,Director of Place,Electricity,,17/06/15,2482.10,,Utilities
5201403,NPOWER LIMITED,Asset & Investment Partnership Management,Director of Place,Electricity,,17/06/15,6364.00,,Utilities
5201408,NPOWER LIMITED,Environmental Services,Director of Place,Electricity,,10/06/15,127743.18,,Utilities
5201412,NPOWER LIMITED,Environmental Services,Director of Place,Electricity,,10/06/15,881.69,,Utilities
5201413,THOMPSONS SOLICITORS,Multiple Heads of Service,Multiple Strategic Directorates,Claims Settled,,10/06/15,4167.14,,Legal Services
5201418,CREATIVE SUPPORT LTD,Adult Social Care,Director of People,Residential Home Long Stay Fees,,08/06/15,1661.52,,Social Community Care Supplies & Services
5201419,NPOWER LIMITED,Education,Director of People,Electricity,,17/06/15,1276.08,,Utilities
5201422,NPOWER LIMITED,Education,Director of People,Electricity,,17/06/15,1170.33,,Utilities
5201431,ASCO EDUCATIONAL SUPPLIES LTD,Public Health,Director of Public Health,Educational Equipment,,11/06/15,1428.00,,Education
5201433,NPOWER LIMITED,Asset & Investment Partnership Management,Director of Place,Electricity,,17/06/15,1432.22,,Utilities
5201445,NPOWER LIMITED,Asset & Investment Partnership Management,Director of Place,Electricity,,17/06/15,531.54,,Utilities
5201447,NPOWER LIMITED,Asset & Investment Partnership Management,Director of Place,Electricity,,17/06/15,791.64,,Utilities
5201448,NPOWER LIMITED,Asset & Investment Partnership Management,Director of Place,Electricity,,17/06/15,791.63,,Utilities
5201449,NPOWER LIMITED,Asset & Investment Partnership Management,Director of Place,Electricity,,17/06/15,792.19,,Utilities
5201451,NPOWER LIMITED,Asset & Investment Partnership Management,Director of Place,Electricity,,17/06/15,766.11,,Utilities
5201452,NPOWER LIMITED,Asset & Investment Partnership Management,Director of Place,Electricity,,17/06/15,1005.43,,Utilities
5201455,NPOWER LIMITED,Asset & Investment Partnership Management,Director of Place,Electricity,,17/06/15,983.60,,Utilities
5201458,NEW CHARTER HOUSING TRUST GROUP,Adult Social Care,Director of People,Non-Authority Accommodation Rental,,08/06/15,7119.14,,Social Community Care Supplies & Services
5201460,NPOWER LIMITED,Asset & Investment Partnership Management,Director of Place,Electricity,,17/06/15,17169.27,,Utilities
5201463,NEW CHARTER HOUSING TRUST GROUP,Strategy & Early Intervention,Director of People,Professional Services,,08/06/15,97600.00,,Social Community Care Supplies & Services
5201466,NEW CHARTER HOUSING TRUST GROUP,Adult Social Care,Director of People,Non-Authority Accommodation Rental,,10/06/15,3972.75,,Social Community Care Supplies & Services
5201468,THE BREAD & BUTTER THEATRE COMPANY,Environmental Services,Director of Place,General Materials,,10/06/15,600.00,,Leisure services
5201487,VISION FOR EDUCATION LIMITED,Education,Director of People,Teachers Supply,,08/06/15,720.00,,Education
5201488,ROCOM,Multiple Heads of Service,Multiple Strategic Directorates,Communications Equipment,,08/06/15,909.65,,Information Communication Technology
5201495,WILLIAMS WOODWARD LTD,Finance,Director of Governance and Resources,Professional Consultancy Services,,08/06/15,3320.00,,Unclassified
5201496,VYSIONICS ITS LTD,Environmental Services,Director of Place,General Materials,,10/06/15,15651.00,,Unclassified
5201498,NSL LIMITED,Environmental Services,Director of Place,NSL Fees,,10/06/15,49292.17,,Traffic Management
5201501,PLAYDALE PLAYGROUNDS LTD,Environmental Services,Director of Place,General Materials,,23/06/15,4832.02,,Sports & Playground Equipment & Maintenance
5201503,CREATIVE SUPPORT LTD,Adult Social Care,Director of People,Residential Home Long Stay Fees,,10/06/15,1661.52,,Social Community Care Supplies & Services
5201520,OFSTED,Childrens Services,Director of People,Inspection Fees,,10/06/15,2197.00,,Education 
5201521,OFSTED,Childrens Services,Director of People,Inspection Fees,,10/06/15,1406.00,,Education 
5201523,DR RICHARD SKELTON,Education,Director of People,Professional Services,Business Payment,10/06/15,1600.00,,Medical
5201541,BERTRAM LIBRARY SERVICES,Education,Director of People,Text Books Periodicals and Newspapers,,11/06/15,4709.02,,Education
5201551,JOHN ATKINSON,Education,Director of People,Training Course Costs,Business Payment,23/06/15,1720.00,,Human Resources
5201552,RANDSTAD EDUCATION LIMITED,Education,Director of People,Teachers Supply,,15/06/15,1050.00,,Education
5201553,RANDSTAD EDUCATION LIMITED,Education,Director of People,Teachers Supply,,15/06/15,575.00,,Education
5201559,PENNINE CARE IN PATIENT SERVS PRIORY,Education,Director of People,Voluntary Organisations Fees,,10/06/15,2275.00,,Social Community Care Supplies & Services
5201560,PENNINE CARE IN PATIENT SERVS PRIORY,Education,Director of People,Voluntary Organisations Fees,,10/06/15,2275.00,,Social Community Care Supplies & Services
5201561,PENNINE CARE IN PATIENT SERVS PRIORY,Education,Director of People,Voluntary Organisations Fees,,10/06/15,1925.00,,Social Community Care Supplies & Services
5201562,WILLIAMS WOODWARD LTD,Finance,Director of Governance and Resources,Professional Consultancy Services,,17/06/15,3320.00,,Unclassified
5201563,WILLIAMS WOODWARD LTD,Finance,Director of Governance and Resources,Professional Consultancy Services,,23/06/15,4150.00,,Unclassified
5201565,WILLIAMS WOODWARD LTD,Finance,Director of Governance and Resources,Professional Consultancy Services,,17/06/15,3735.00,,Unclassified
5201566,LEGGETT PSYCHOLOGY LTD,Education,Director of People,Professional Services,,10/06/15,1200.00,,Education
5201568,CARE IN MIND LTD,Adult Social Care,Director of People,Residential Home Short Stay Fees,,10/06/15,2752.22,,Social Community Care Supplies & Services
5201569,VISION FOR EDUCATION LIMITED,Education,Director of People,Teachers Supply,,15/06/15,800.00,,Education
5201571,VISION FOR EDUCATION LIMITED,Education,Director of People,Teachers Supply,,18/06/15,800.00,,Education
5201572,NAS,Adult Social Care,Director of People,Subscriptions,,23/06/15,2500.00,,Unclassified
5201573,BHA FOR EQUALITY,Public Health,Director of Public Health,Professional Services,,15/06/15,1500.00,,Unclassifiable
5201574,SERVICES BIRMINGHAM LTD,Development Growth & Investment,Director of Place,Subscriptions,,15/06/15,7767.06,,Unclassified
5201587,MOSSLEY PRIVATE HIRE,Environmental Services,Director of Place,Hired Transport,,10/06/15,1121.00,,Unclassified
5201588,MOSSLEY PRIVATE HIRE,Environmental Services,Director of Place,Hired Transport,,10/06/15,1312.00,,Unclassified
5201589,EAST TO WEST PROPERTIES LTD,Exchequer,Director of Governance and Resources,Professional Services,,17/06/15,1863.14,,Unclassified
5201598,RICOH UK,Multiple Heads of Service,Multiple Strategic Directorates,Photo Print Charges,,10/06/15,754.30,,Facilities & Management Services
5201599,RICOH UK,Multiple Heads of Service,Multiple Strategic Directorates,Photo Print Charges,,10/06/15,754.30,,Facilities & Management Services
5201602,RICOH UK,Multiple Heads of Service,Multiple Strategic Directorates,Photo Print Charges,,10/06/15,754.30,,Facilities & Management Services
5201603,RICOH UK,Multiple Heads of Service,Multiple Strategic Directorates,Photo Print Charges,,10/06/15,754.30,,Facilities & Management Services
5201605,THE GUINNESS PARTNERSHIP LTD,Adult Social Care,Director of People,Non-Authority Accommodation Rental,,10/06/15,4066.40,,Housing Management
5201608,,Multiple Heads of Service,Multiple Strategic Directorates,Claims Settled,Redacted Supplier,10/06/15,667.25,,Unclassifiable
5201611,THE GUINNESS PARTNERSHIP LTD,Adult Social Care,Director of People,Non-Authority Accommodation Rental,,10/06/15,1221.48,,Housing Management
5201615,MICHAEL W HALSALL SOLICITORS,Multiple Heads of Service,Multiple Strategic Directorates,Claims Settled,,10/06/15,1738.00,,Legal Services
5201619,HM REVENUES AND CUSTOMS,Asset & Investment Partnership Management,Director of Place,Legal Fees,,10/06/15,4251.00,,Unclassified
5201621,PLAYDALE PLAYGROUNDS LTD,Environmental Services,Director of Place,General Materials,,23/06/15,3962.70,,Sports & Playground Equipment & Maintenance
5201630,STOCKPORT CP  SOCIETY,Adult Social Care,Director of People,Day Centre Fees,,23/06/15,1073.44,,Social Community Care Supplies & Services
5201631,STOCKPORT CP  SOCIETY,Adult Social Care,Director of People,Day Centre Fees,,23/06/15,1073.44,,Social Community Care Supplies & Services
5201632,CREATIVE SUPPORT LTD,Adult Social Care,Director of People,Homecare Fees,,23/06/15,28726.66,,Social Community Care Supplies & Services
5201633,RAYMOND C HARRISON BUILDERS,Housing,Director of Place,Improvement Grants - Final Mandatory,,10/06/15,891.20,,"Works - Construction, Repair & Maintenance"
5201634,THE FURNISHING SERVICE LTD,Stronger Communities,Director of People,Fixtures & Fittings Purchase,,10/06/15,1109.70,,Furniture
5201635,CREATIVE SUPPORT LTD,Adult Social Care,Director of People,Homecare Fees,,18/06/15,15126.50,,Social Community Care Supplies & Services
5201639,CREATIVE SUPPORT LTD,Adult Social Care,Director of People,Homecare Fees,,18/06/15,15126.50,,Social Community Care Supplies & Services
5201643,COOLSPIRIT LTD,Multiple Heads of Service,Multiple Strategic Directorates,Communications Equipment,,10/06/15,1102.24,,Information Communication Technology
5201645,CREATIVE SUPPORT LTD,Adult Social Care,Director of People,Homecare Fees,,18/06/15,15126.50,,Social Community Care Supplies & Services
5201646,CREATIVE SUPPORT LTD,Adult Social Care,Director of People,Homecare Fees,,18/06/15,15126.50,,Social Community Care Supplies & Services
5201653,GREATER MANCHESTER COMBINED AUTHORITY,Engineers Client,Director of Place,Engineers -External,,10/06/15,1514.31,,Unclassified
5201658,COMMUNITY INTEGRATED CARE,Adult Social Care,Director of People,Homecare Fees,,23/06/15,18360.00,,Social Community Care Supplies & Services
5201659,LAUREL BANK SUPPORT AT HOME,Adult Social Care,Director of People,Homecare Fees,,10/06/15,2258.79,,Social Community Care Supplies & Services
5201661,BUREAU VAN DIJK ELECTRONIC PUBLISHING LTD,Stronger Communities,Director of People,Purchase Books,,10/06/15,4000.00,,Education
5201670,VILLAGE URBAN RESORTS,Education,Director of People,Training Course Costs,,10/06/15,661.04,,Human Resources
5201674,MOSSCARE HOUSING LTD,Adult Social Care,Director of People,Non-Authority Accommodation Rental,,10/06/15,29330.65,,Social Community Care Supplies & Services
5201676,EMPRESS CONNECT,Asset & Investment Partnership Management,Director of Place,Security Services,,10/06/15,5226.00,,Facilities & Management Services
5201678,READING ROOM MANCHESTER LTD,Stronger Communities,Director of People,Professional Services,   ,10/06/15,2145.00,,Unclassified
5201683,DOMAIN CARE NORTH WEST LTD,Adult Social Care,Director of People,Homecare Fees,,23/06/15,799.50,,Social Community Care Supplies & Services
5201685,DOMAIN CARE NORTH WEST LTD,Adult Social Care,Director of People,Homecare Fees,,23/06/15,900.47,,Social Community Care Supplies & Services
5201686,DOMAIN CARE NORTH WEST LTD,Adult Social Care,Director of People,Homecare Fees,,23/06/15,2140.00,,Social Community Care Supplies & Services
5201698,ANCHOR TRUST,Stronger Communities,Director of People,Supporting People Gross Contract,,17/06/15,3548.00,,Social Community Care Supplies & Services
5201701,ROYAL MAIL GROUP PLC,Exchequer,Director of Governance and Resources,Postages,,10/06/15,722.60,,Mail Services
5201703,CHILD POVERTY ACTION GROUP,Stronger Communities,Director of People,Purchase Books,,10/06/15,510.89,,Social Community Care
5201712,HMCTS,Childrens Services,Director of People,Court Fees,,17/06/15,12545.00,,Non 3rd Party spend  
5201716,CYCLESCHEME LTD,Multiple Heads of Service,Multiple Strategic Directorates,General Equipment Purchase,,15/06/15,2233.77,,Unclassified
5201722,KEYSOFT SOLUTIONS LTD,Environmental Services,Director of Place,Engineers Works,,10/06/15,2950.00,,"Works - Construction, Repair & Maintenance"
5201723,MOSSLEY PRIVATE HIRE,Education,Director of People,Transport Of Pupils,,10/06/15,1875.00,,Unclassifiable
5201724,MOSSLEY PRIVATE HIRE,Education,Director of People,Transport Of Pupils,,10/06/15,1500.00,,Unclassifiable
5201725,ORANGE PCS,Digital Tameside,Director of Place,Mobile Telephones,,11/06/15,2751.95,,Information Communication Technology
5201741,FODENS BAND,Stronger Communities,Director of People,Professional Entertainment Services,,10/06/15,2500.00,,Charities and Voluntary Organisations
5201742,,Adult Social Care,Director of People,Contribution to Maintenance Fee Income,Redacted Supplier,10/06/15,790.22,,Unclassified
5201744,ASHTON UNDER LYNE BRASS BAND,Stronger Communities,Director of People,Professional Entertainment Services,,10/06/15,1000.00,,Charities and Voluntary Organisations
5201745,STALYBRIDGE OLD BAND,Stronger Communities,Director of People,Professional Entertainment Services,,10/06/15,600.00,,Charities and Voluntary Organisations
5201771,NORTHENDEN TRAVEL LTD,Finance,Director of Governance and Resources,Staff Travel Costs,,17/06/15,514.00,,Transport
5201781,TAMESIDE SPORTS TRUST,Childrens Services,Director of People,Fees, ,23/06/15,30000.00,,Leisure Services
5201785,CARE UK HOMECARE,Adult Social Care,Director of People,Homecare Fees,,23/06/15,113208.33,,Social Community Care Supplies & Services
5201787,CARE UK HOMECARE,Adult Social Care,Director of People,Homecare Fees,,10/06/15,34852.81,,Social Community Care Supplies & Services
5201789,CORONA ENERGY RETAIL 4 LIMITED,Education,Director of People,Gas,,17/06/15,2095.69,,Utilities
5201801,SHERIDAN DESIGN,Stronger Communities,Director of People,Printing And Stationery,   ,10/06/15,3631.00,,Facilities & Management Services
5201805,HOWARD COOK,Education,Director of People,Professional Services,Business Payment,11/06/15,680.00,,Unclassifiable
5201806,CBRE SPUK II (NO17) LTD,Asset & Investment Partnership Management,Director of Place,Non-Authority Accommodation Rental,,17/06/15,4750.00,,Facilities & Management Services
5201818,DOMAIN CARE NORTH WEST LTD,Adult Social Care,Director of People,Homecare Fees,,23/06/15,799.50,,Social Community Care Supplies & Services
5201819,DOMAIN CARE NORTH WEST LTD,Adult Social Care,Director of People,Homecare Fees,,23/06/15,900.47,,Social Community Care Supplies & Services
5201820,DOMAIN CARE NORTH WEST LTD,Adult Social Care,Director of People,Homecare Fees,,23/06/15,2140.00,,Social Community Care Supplies & Services
5201821,DOMAIN CARE NORTH WEST LTD,Adult Social Care,Director of People,Homecare Fees,,23/06/15,580.00,,Social Community Care Supplies & Services
5201823,VODAFONE,Finance,Director of Governance and Resources,Telephone Landline Costs,,15/06/15,697.44,,Information Communication Technology
5201824,VODAFONE,Finance,Director of Governance and Resources,Telephone Landline Costs,,15/06/15,678.25,,Information Communication Technology
5201830,M.C. & M.A. STEWART HAULAGE LTD,Environmental Services,Director of Place,Horticultural Equipment,,17/06/15,887.50,,Horticultural
5201836,CROMWELL POLYTHENE LTD.,Environmental Services,Director of Place,Purchase Wheeled Bins,,11/06/15,4792.80,,Unclassified
5201840,THE FURNISHING SERVICE LTD,Stronger Communities,Director of People,Fixtures & Fittings Purchase,,11/06/15,1071.53,,Furniture
5201842,PAYPARTNERS LTD (MONTHLY),Adult Social Care,Director of People,Sub-contractor Services,,23/06/15,4578.00,,Social Community Care Supplies & Services
5201888,MRL HEALTHCARE LIMITED,Adult Social Care,Director of People,Homecare Fees,,11/06/15,19215.00,,Social Community Care Supplies & Services
5201889,MRL HEALTHCARE LIMITED,Adult Social Care,Director of People,Homecare Fees,,11/06/15,19215.00,,Social Community Care Supplies & Services
5201895,MR JOHN DELANEY,Education,Director of People,Transport Of Post 16 Pupils,Business Payment,11/06/15,1260.00,,Unclassified
5201897,MR JOHN DELANEY,Environmental Services,Director of Place,Hired Transport,Business Payment,11/06/15,1615.00,,Unclassified
5201898,MR JOHN DELANEY,Environmental Services,Director of Place,Hired Transport,Business Payment,11/06/15,700.00,,Unclassified
5201899,MR JOHN DELANEY,Education,Director of People,Transport Of Pupils,Business Payment,11/06/15,1500.00,,Unclassified
5201900,MR JOHN DELANEY,Education,Director of People,Transport Of Pupils,Business Payment,11/06/15,1350.00,,Unclassified
5201901,MR JOHN DELANEY,Education,Director of People,Transport Of Pupils,Business Payment,11/06/15,1500.00,,Unclassified
5201904,MR JOHN DELANEY,Education,Director of People,Transport Of Pupils,Business Payment,23/06/15,1350.00,,Unclassified
5201905,MR JOHN DELANEY,Environmental Services,Director of Place,Hired Transport,Business Payment,23/06/15,765.00,,Unclassified
5201906,MOSSLEY PRIVATE HIRE,Strategy & Early Intervention,Director of People,Hired Transport,,23/06/15,1795.00,,Unclassified
5201908,CIVICA UK LTD,Exchequer,Director of Governance and Resources,Computer Software Maintenance Costs,,18/06/15,11042.75,,Information Communication Technology
5201910,GVA GRIMLEY LTD,Development Growth & Investment,Director of Place,Professional Services,,15/06/15,3000.00,,Consultancy
5201916,MARK HARLOW,Environmental Services,Director of Place,Hired Transport,Business Payment,15/06/15,760.00,,Unclassified
5201917,MARK HARLOW,Environmental Services,Director of Place,Hired Transport,Business Payment,15/06/15,1330.00,,Unclassified
5201919,W A MEADOWCROFT,Environmental Services,Director of Place,Hired Transport,Business Payment,15/06/15,1200.00,,Unclassifiable
5201921,LARIA,Governance,Director of Governance and Resources,Conference/Seminar Expenses For Staff,,15/06/15,548.00,,Unclassified
5201922,LIME TRAVEL,Education,Director of People,Transport Of Ola Pupils,,15/06/15,1297.50,,Human Resources
5201923,LIME TRAVEL,Education,Director of People,Transport Of Ola Pupils,,15/06/15,1537.50,,Human Resources
5201924,MICHAEL ADLARD,Education,Director of People,Transport Of Pupils,Business Payment,15/06/15,880.00,,Unclassified
5201926,LIME TRAVEL,Education,Director of People,Transport Of Pupils,,15/06/15,1365.00,,Human Resources
5201927,STAMFORD CARS UK LTD,Education,Director of People,Transport Of Ola Pupils,,15/06/15,1537.50,,Unclassified
5201928,ROYALE MINICOACHES,Education,Director of People,Transport Of Pupils,,15/06/15,1500.00,,Unclassifiable
5201930,LIME TRAVEL,Education,Director of People,Transport Of Pupils,,15/06/15,1365.00,,Human Resources
5201931,LIME TRAVEL,Education,Director of People,Transport Of Pupils,,15/06/15,637.00,,Human Resources
5201932,STAMFORD CARS UK LTD,Education,Director of People,Transport Of Ola Pupils,,15/06/15,1376.25,,Unclassified
5201933,STAMFORD CARS UK LTD,Education,Director of People,Transport Of Ola Pupils,,15/06/15,1338.75,,Unclassified
5201934,STAMFORD CARS UK LTD,Education,Director of People,Transport Of Ola Pupils,,15/06/15,1413.75,,Unclassified
5201935,B MORRELL,Education,Director of People,Transport Of Pupils,Business Payment,15/06/15,1500.00,,Social Community Care
5201937,GLM ACCESSIBLE TRANSPORT,Education,Director of People,Transport Of Pupils,Business Payment,15/06/15,1050.00,,Unclassified
5201938,GLM ACCESSIBLE TRANSPORT,Education,Director of People,Transport Of Pupils,Business Payment,15/06/15,1590.00,,Unclassified
5201939,GLM ACCESSIBLE TRANSPORT,Education,Director of People,Transport Of Post 16 Pupils,Business Payment,15/06/15,1200.00,,Unclassified
5201940,MICHAEL ADLARD,Education,Director of People,Transport Of Pupils,Business Payment,15/06/15,532.50,,Unclassified
5201941,MICHAEL ADLARD,Education,Director of People,Transport Of Pupils,Business Payment,15/06/15,1200.00,,Unclassified
5201942,MICHAEL ADLARD,Education,Director of People,Transport Of Pupils,Business Payment,15/06/15,1200.00,,Unclassified
5201943,GLENN CAWTHORN,Education,Director of People,Transport Of Pupils,Business Payment,15/06/15,826.00,,Unclassified
5201944,G M GREEN,Education,Director of People,Transport Of Pupils,Business Payment,15/06/15,1050.00,,Social Community Care Supplies & Services
5201945,W A MEADOWCROFT,Education,Director of People,Transport Of Pupils,Business Payment,15/06/15,712.50,,Unclassifiable
5201946,DAVID CROZIER,Education,Director of People,Transport Of Post 16 Pupils,Business Payment,15/06/15,1544.00,,Unclassifiable
5201947,DAVID CROZIER,Education,Director of People,Transport Of Post 16 Pupils,Business Payment,15/06/15,1344.00,,Unclassifiable
5201948,DAVID CROZIER,Education,Director of People,Transport Of Post 16 Pupils,Business Payment,15/06/15,1344.00,,Unclassifiable
5201949,FENTONS TAXIS,Education,Director of People,Transport Of Pupils,,15/06/15,1245.00,,Unclassified
5201950,LIME TRAVEL,Education,Director of People,Transport Of Pupils,,15/06/15,1365.00,,Human Resources
5201953,STAMFORD CARS UK LTD,Education,Director of People,Transport Of Pupils,,15/06/15,714.00,,Unclassified
5201955,GLM ACCESSIBLE TRANSPORT,Education,Director of People,Additional Hire, ,17/06/15,750.00,,Unclassified
5201957,COOLSPIRIT LTD,Multiple Heads of Service,Multiple Strategic Directorates,Communications Equipment,,24/06/15,694.68,,Information Communication Technology
5201959,DAVID CROZIER,Education,Director of People,Transport Of Pupils,Business Payment,15/06/15,1140.00,,Unclassifiable
5201960,DAVID CROZIER,Education,Director of People,Transport Of Pupils,Business Payment,15/06/15,990.00,,Unclassifiable
5201962,MICHAEL ADLARD,Education,Director of People,Transport Of Pupils,Business Payment,15/06/15,880.00,,Unclassified
5201963,PARKLANE,Environmental Services,Director of Place,Hired Transport,,15/06/15,1504.80,,Transport
5201964,PARKLANE,Environmental Services,Director of Place,Hired Transport,,15/06/15,1824.00,,Transport
5201966,B MORRELL,Environmental Services,Director of Place,Hired Transport,Business Payment,15/06/15,983.75,,Social Community Care
5201967,FENTONS MINIBUSES LTD,Education,Director of People,Transport Of Ola Pupils,,15/06/15,1184.50,,Transport
5201970,STAMFORD CARS UK LTD,Environmental Services,Director of Place,Hired Transport,,15/06/15,990.00,,Unclassified
5201978,S & S MARQUEES,Stronger Communities,Director of People,Professional Entertainment Services,Business Payment,15/06/15,660.00,,Leisure Services
5201991,STAMFORD CARS UK LTD,Environmental Services,Director of Place,Hired Transport,,15/06/15,600.00,,Unclassified
5201995,J & R TAXIS LTD,Environmental Services,Director of Place,Hired Transport,,15/06/15,1664.00,,Unclassified
5201999,LIME TRAVEL,Strategy & Early Intervention,Director of People,Hired Transport,,15/06/15,900.00,,Human Resources
5202000,LIME TRAVEL,Strategy & Early Intervention,Director of People,Hired Transport,,15/06/15,1752.00,,Human Resources
5202001,LIME TRAVEL,Childrens Services,Director of People,Hired Transport,,15/06/15,1440.00,,Human Resources
5202002,J P KELSEY PLUMBING & HEATING LTD,Housing,Director of Place,Improvement Grants - Final Mandatory,,15/06/15,4584.00,,Building Construction Materials
5202008,GREENSCAPE,Adult Social Care,Director of People,Tree Planting Programme,,15/06/15,2255.62,,"Works - Construction, Repair & Maintenance"
5202015,FACILITY SOLUTIONS NORTHWEST,Multiple Heads of Service,Corporate Costs,Security Services,,18/06/15,1895.25,,Facilities & Management Services
5202020,NEW CHARTER HOUSING TRUST GROUP,Strategy & Early Intervention,Director of People,Professional Services,,18/06/15,163400.00,,Social Community Care Supplies & Services
5202022,HMCTS,Exchequer,Director of Governance and Resources,Postages,,17/06/15,7602.00,,Non 3rd Party spend  
5202028,TAMESIDE SPORTS TRUST,Adult Social Care,Director of People,Professional Services,,15/06/15,4039.20,,Leisure Services
5202029,TAMESIDE SPORTS TRUST,Childrens Services,Director of People,Fees, ,23/06/15,9000.00,,Leisure Services
5202030,OPENREACH BILLING TEAM (CNS),Environmental Services,Director of Place,Engineers -External,,15/06/15,825.36,,Information Communication Technology
5202034,MEDICO NURSING AND HOMECARE,Adult Social Care,Director of People,Homecare Fees,,17/06/15,12624.47,,Social Community Care Supplies & Services
5202035,MEDICO NURSING AND HOMECARE,Adult Social Care,Director of People,Homecare Fees,,17/06/15,12099.05,,Social Community Care Supplies & Services
5202036,MEDICO NURSING AND HOMECARE,Adult Social Care,Director of People,Homecare Fees,,17/06/15,13027.41,,Social Community Care Supplies & Services
5202039,,Adult Social Care,Director of People,Residential Home Short Stay Fees,Redacted Supplier,15/06/15,892.92,,Unclassifiable
5202040,,Adult Social Care,Director of People,Day Care Fees,Redacted Supplier,15/06/15,786.78,,Unclassified
5202042,,Adult Social Care,Director of People,Day Care Fees,Redacted Supplier,17/06/15,523.41,,Unclassified
5202045,,Adult Social Care,Director of People,Day Care Fees,Redacted Supplier,15/06/15,552.77,,Unclassified
5202074,T15 CONSULTANCY LTD,Stronger Communities,Director of People,Other Accomodation Related Costs,,17/06/15,550.00,,Consultancy
5202109,GRANART LIMITED,Environmental Services,Director of Place,Plaques,,17/06/15,854.00,,Environmental Services
5202110,THE FURNISHING SERVICE LTD,Stronger Communities,Director of People,Fixtures & Fittings Purchase,,17/06/15,849.07,,Furniture
5202118,M.C. & M.A. STEWART HAULAGE LTD,Environmental Services,Director of Place,Horticultural Equipment,,17/06/15,6000.00,,Horticultural
5202133,HAUGHTON GREEN METHODIST CHURCH,Governance,Director of Governance and Resources,Non-Authority Accommodation Rental,,23/06/15,700.00,,Unclassifiable
5202138,INFOR GLOBAL SOLUTIONS LTD,Stronger Communities,Director of People,Computer Software,,17/06/15,34426.60,,Information Communication Technology
5202149,ADONI SOFTWARE,Digital Tameside,Director of Place,Computer Software,,17/06/15,2875.00,,Unclassified
5202156,,Adult Social Care,Director of People,Day Care Fees,Redacted Supplier,17/06/15,595.30,,Unclassified
5202171,P MCGUINNESS & CO LTD,Engineers Client,Director of Place,Engineers -External,,17/06/15,4680.00,,"Works - Construction, Repair & Maintenance"
5202172,STAMFORD CARS UK LTD,Education,Director of People,Transport Of Ola Pupils,,15/06/15,990.00,,Unclassified
5202173,STAMFORD CARS UK LTD,Education,Director of People,Transport Of Post 16 Pupils,,15/06/15,1050.00,,Unclassified
5202175,RANDSTAD EDUCATION LIMITED,Education,Director of People,Teachers Supply,,17/06/15,1050.00,,Education
5202176,RANDSTAD EDUCATION LIMITED,Education,Director of People,Teachers Supply,,17/06/15,520.00,,Education
5202178,STAMFORD CARS UK LTD,Education,Director of People,Transport Of Pupils,,15/06/15,712.50,,Unclassified
5202179,JUDITH WHITTAM,Adult Services,Director of People,Professional Services,Business Payment,23/06/15,1941.20,,Consultancy
5202181,PA CONSULTING SERVICES LTD,Adult Services,Director of People,General Expenditure, ,25/06/15,22480.00,,Consultancy
5202183,STAMFORD CARS UK LTD,Education,Director of People,Transport Of Ola Pupils,,15/06/15,1177.50,,Unclassified
5202184,STAMFORD CARS UK LTD,Education,Director of People,Transport Of Pupils,,15/06/15,990.00,,Unclassified
5202185,STAMFORD CARS UK LTD,Education,Director of People,Transport Of Pupils,,15/06/15,1215.00,,Unclassified
5202186,STAMFORD CARS UK LTD,Education,Director of People,Transport Of Pupils,,15/06/15,990.00,,Unclassified
5202187,STAMFORD CARS UK LTD,Education,Director of People,Transport Of Pupils,,15/06/15,1053.75,,Unclassified
5202188,STAMFORD CARS UK LTD,Education,Director of People,Transport Of Pupils,,15/06/15,945.00,,Unclassified
5202189,STAMFORD CARS UK LTD,Education,Director of People,Transport Of Pupils,,15/06/15,1053.75,,Unclassified
5202191,DENTON LINKS,Environmental Services,Director of Place,Hired Transport,,15/06/15,1330.00,,Unclassified
5202192,DENTON LINKS,Environmental Services,Director of Place,Hired Transport,,15/06/15,1900.00,,Unclassified
5202194,STAMFORD CARS UK LTD,Education,Director of People,Transport Of Ola Pupils,,15/06/15,2160.00,,Unclassified
5202195,STAMFORD CARS UK LTD,Education,Director of People,Transport Of Ola Pupils,,15/06/15,2240.00,,Unclassified
5202196,STAMFORD CARS UK LTD,Education,Director of People,Transport Of Ola Pupils,,15/06/15,1237.50,,Unclassified
5202197,STAMFORD CARS UK LTD,Education,Director of People,Transport Of Ola Pupils,,15/06/15,1267.50,,Unclassified
5202198,STAMFORD CARS UK LTD,Education,Director of People,Transport Of Pupils,,15/06/15,892.50,,Unclassified
5202199,STAMFORD CARS UK LTD,Education,Director of People,Transport Of Pupils,,15/06/15,1215.00,,Unclassified
5202200,STAMFORD CARS UK LTD,Education,Director of People,Transport Of Pupils,,15/06/15,1215.00,,Unclassified
5202201,STAMFORD CARS UK LTD,Education,Director of People,Transport Of Pupils,,15/06/15,1185.00,,Unclassified
5202203,STAMFORD CARS UK LTD,Environmental Services,Director of Place,Hired Transport,,15/06/15,675.00,,Unclassified
5202209,TURNING POINT SERVICES LTD,Adult Social Care,Director of People,Independent Sector Care Fees,,23/06/15,46566.67,,Social Community Care
5202213,HOWARD COOK,Education,Director of People,Agency Staff,Business Payment,15/06/15,680.00,,Unclassifiable
5202224,THE FURNISHING SERVICE LTD,Stronger Communities,Director of People,Fixtures & Fittings Purchase,,17/06/15,1097.04,,Furniture
5202226,THE UK ASSOCIATION FOR MUSIC EDUCATION- MUSIC MARK,Education,Director of People,Subscriptions,,24/06/15,655.00,,Education
5202235,4PB,Childrens Services,Director of People,Legal Fees,,17/06/15,1500.00,,Legal Services
5202236,BAKER TILLY TAX AND ACCOUNTING LTD,Stronger Communities,Director of People,Professional Services,   ,17/06/15,5833.33,,Unclassifiable
5202239,RITRAMA (U.K.) LIMITED,Development Growth & Investment,Director of Place,Contributions,,24/06/15,120704.68,,Unclassified
5202241,THE FURNISHING SERVICE LTD,Adult Social Care,Director of People,Fixtures & Fittings Purchase,,18/06/15,1189.27,,Furniture
5202243,JONES LIGHTING LTD,Environmental Services,Director of Place,Reactive Works Engineers Recharge,,18/06/15,662.41,,Highway Equipment & Materials
5202245,JONES LIGHTING LTD,Environmental Services,Director of Place,Reactive Works Engineers Recharge,,18/06/15,4751.78,,Highway Equipment & Materials
5202247,RICOH UK,Development Growth & Investment,Director of Place,Printing And Stationery,,17/06/15,969.10,,Facilities & Management Services
5202256,DIRECT CARE (NORTH WEST) LTD,Adult Social Care,Director of People,Homecare Fees,,17/06/15,9325.17,,Social Community Care Supplies & Services
5202257,DIRECT CARE (NORTH WEST) LTD,Adult Social Care,Director of People,Homecare Fees,,17/06/15,597.86,,Social Community Care Supplies & Services
5202262,SUPPLIES TEAM LIMITED,Environmental Services,Director of Place,Printing And Stationery,,18/06/15,541.08,,Facilities & Management Services
5202269,KNIGHT KAVANAGH & PAGE,Tameside Investment Partnership,Director of Place,Professional Consultancy Services,,17/06/15,5985.00,,Unclassifiable
5202283,SCOTTISH POWER,Asset & Investment Partnership Management,Director of Place,Electricity,,24/06/15,1678.67,,Utilities
5202285,PROGRESS CARE HOUSING ASSOCIATION LIMITED,Adult Social Care,Director of People,Non-Authority Accommodation Rental,,17/06/15,5448.98,,Housing Management
5202288,ADVENTURE BASED LEARNING,Stronger Communities,Director of People,Professional Entertainment Services,,17/06/15,600.00,,Leisure Services
5202290,TYNETEC,Adult Social Care,Director of People,It Equipment,,17/06/15,968.10,,Social Community Care
5202295,NORTHGATE PUBLIC SERVICES UK LTD,Stronger Communities,Director of People,Computer Hardware Purchase,,17/06/15,1380.00,,Unclassifiable
5202297,N A BROWN LTD,Environmental Services,Director of Place,General Materials,,17/06/15,1014.00,,Unclassifiable
5202305,HARTTRON  LTD,Asset Management and Investment Partnership Management,Director of Place,Street Lighting,,24/06/15,800.00,,"Works - Construction, Repair & Maintenance"
5202306,HARTTRON  LTD,Engineers Client,Director of Place,Street Lighting Works,,25/06/15,830.00,,"Works - Construction, Repair & Maintenance"
5202307,HARTTRON  LTD,Environmental Services,Director of Place,Reactive Works Engineers Recharge,,25/06/15,1300.00,,"Works - Construction, Repair & Maintenance"
5202314,PROQUEST INFORMATION  AND LEARNING LTD,Stronger Communities,Director of People,Purchase Books,,17/06/15,1585.00,,Leisure Services
5202317,TRINITY COLLEGE LONDON,Stronger Communities,Director of People,Professional Entertainment Services,,17/06/15,501.00,,Non 3rd Party spend  
5202321,NORTHGATE PUBLIC SERVICES UK LTD,Development Growth & Investment,Director of Place,Computer Hardware Maintenance Costs,,17/06/15,1451.53,,Information Communication Technology
5202329,THE BLACKBURN PRODUCTS CO LTD,Environmental Services,Director of Place,Waste Disposal Fees,,17/06/15,640.00,,Environmental Services
5202331,RICOH UK,Multiple Heads of Service,Multiple Strategic Directorates,Photo Print Charges,,23/06/15,919.42,,Facilities & Management Services
5202334,RANDSTAD EDUCATION LIMITED,Education,Director of People,Agency Staff,,17/06/15,840.00,,Education
5202335,RANDSTAD EDUCATION LIMITED,Education,Director of People,Agency Staff,,17/06/15,520.00,,Education
5202338,HOMESTART TAMESIDE & OLDHAM,Public Health,Director of Public Health,Professional Services,,17/06/15,10416.67,,Social Community Care
5202339,HOMESTART TAMESIDE & OLDHAM,Public Health,Director of Public Health,Professional Services,,17/06/15,6250.00,,Social Community Care
5202346,DEFENSIVE DRIVER TRAINING LTD,Environmental Services,Director of Place,Training Course Costs,,17/06/15,870.00,,Human Resources
5202356,RIGBY TAYLOR LTD,Environmental Services,Director of Place,Horticultural Equipment,,17/06/15,2736.00,,Horticultural
5202358,LIFELINE PROJECT LTD (PH),Public Health,Director of Public Health,Professional Services,,18/06/15,8329.66,,Consultancy
5202359,DEFENSIVE DRIVER TRAINING LTD,Environmental Services,Director of Place,Training Course Costs,,17/06/15,913.75,,Human Resources
5202360,NEIL CLIFFORD,Housing,Director of Place,Professional Services,Business Payment,23/06/15,7037.20,,Consultancy
5202386,DEFENSIVE DRIVER TRAINING LTD,Environmental Services,Director of Place,Training Course Costs,,17/06/15,922.50,,Human Resources
5202387,THE CHESHIRE & GREATER MANCHESTER COMMUNITY REHABILITATION COMPANY LTD,Stronger Communities,Director of People,Professional Services,,17/06/15,4671.76,,Unclassifiable
5202389,B&E CONSULTANTS LTD,Public Health,Director of Public Health,Professional Services,,17/06/15,850.00,,Unclassified
5202393,COMPLETE BACKGROUND SCREENING LTD,Governance,Director of Governance and Resources,Professional Services,,23/06/15,1685.00,,Unclassifiable
5202395,COMPLETE BACKGROUND SCREENING LTD,Governance,Director of Governance and Resources,Professional Services,,23/06/15,2373.50,,Unclassifiable
5202400,STOCKPORT NHS FOUNDATION TRUST,Childrens Services,Director of People,Other Local Authority fees, ,17/06/15,1891.00,,Medical
5202408,MAMMOTH SIGNS LTD,Engineers Client,Director of Place,Professional Services,,25/06/15,1300.00,,Highway Equipment & Materials
5202410,MARK HANCOCK,Education,Director of People,Professional Services,Business Payment,17/06/15,2600.00,,Consultancy
5202421,ROCOM,Multiple Heads of Service,Multiple Strategic Directorates,Communications Equipment,,24/06/15,1482.27,,Information Communication Technology
5202427,STOCKPORT NHS FOUNDATION TRUST,Education,Director of People,Professional Services,,23/06/15,3333.00,,Medical
5202428,RANDSTAD EDUCATION LIMITED,Education,Director of People,Teachers Supply,,17/06/15,796.00,,Education
5202433,BROXAP LIMITED,Environmental Services,Director of Place,General Materials,,17/06/15,5550.00,,Environmental Services
5202438,WILLIAMS WOODWARD LTD,Finance,Director of Governance and Resources,Professional Consultancy Services,,29/06/15,6640.00,,Unclassified
5202462,LAUREL BANK SUPPORT AT HOME,Adult Social Care,Director of People,Homecare Fees,,18/06/15,2286.59,,Social Community Care Supplies & Services
5202463,GETRONICS UNIFIED COMMUNICATIONS UK LIMITED,Multiple Heads of Service,Multiple Strategic Directorates,Communications Equipment,,18/06/15,31161.40,,Information Communication Technology
5202476,HITESH PAREKH,Stronger Communities,Director of People,Other Accomodation Related Costs,Business Payment,18/06/15,500.00,,Unclassifiable
5202482,MR S AND MRS S MCNEE ROACHES LOCK,Governance,Director of Governance and Resources,Non-Authority Accommodation Rental,,23/06/15,500.00,,Unclassified
5202485,PRIORY TENNIS CLUB,Governance,Director of Governance and Resources,Non-Authority Accommodation Rental,,23/06/15,500.00,,Unclassifiable
5202506,METROMEDIA,Stronger Communities,Director of People,Contribution,,24/06/15,1850.00,,Social Community Care Supplies & Services
5202511,,Adult Social Care,Director of People,Day Care Fees,Redacted Supplier,23/06/15,657.15,,Unclassified
5202513,,Adult Social Care,Director of People,Day Care Fees,Redacted Supplier,23/06/15,553.33,,Unclassified
5202522,DIRECT CARE (NORTH WEST) LTD,Adult Social Care,Director of People,Homecare Fees,,18/06/15,10281.05,,Social Community Care Supplies & Services
5202523,TAMESIDE SPORTS TRUST,Stronger Communities,Director of People,Professional Sports Coaching Services,,18/06/15,10717.00,,Leisure Services
5202536,THE FURNISHING SERVICE LTD,Stronger Communities,Director of People,Fixtures & Fittings Purchase,,18/06/15,975.56,,Furniture
5202542,THE FURNISHING SERVICE LTD,Stronger Communities,Director of People,Fixtures & Fittings Purchase,,23/06/15,589.18,,Furniture
5202543,THE FURNISHING SERVICE LTD,Stronger Communities,Director of People,Fixtures & Fittings Purchase,,23/06/15,1039.78,,Furniture
5202547,THE FURNISHING SERVICE LTD,Adult Social Care,Director of People,Fixtures & Fittings Purchase,,18/06/15,1827.79,,Furniture
5202555,TAMESIDE SPORTS TRUST,Strategy & Early Intervention,Director of People,"Activity (Materials, Trips)",,25/06/15,1680.00,,Leisure Services
5202556,GRANT THORNTON UK LLP,Multiple Heads of Service,Corporate Costs,Audit Commission Fees,,23/06/15,35373.25,,Financial Services
5202562,THE FURNISHING SERVICE LTD,Stronger Communities,Director of People,Fixtures & Fittings Purchase,,23/06/15,555.36,,Furniture
5202563,THE FURNISHING SERVICE LTD,Stronger Communities,Director of People,Fixtures & Fittings Purchase,,23/06/15,526.04,,Furniture
5202565,PLANTATION INVESTMENTS LIMITED,Asset & Investment Partnership Management,Director of Place,Non-Authority Accommodation Rental,,25/06/15,53337.00,,Facilities & Management Services
5202572,TAMESIDE COLLEGE,Education,Director of People,Professional Services,,29/06/15,3983.00,,Unclassified
5202574,NEW CHARTER HOUSING TRUST GROUP,Stronger Communities,Director of People,Housing Aid Function,,24/06/15,33740.57,,Social Community Care Supplies & Services
5202575,THE FURNISHING SERVICE LTD,Stronger Communities,Director of People,Fixtures & Fittings Purchase,,23/06/15,1034.41,,Furniture
5202576,THE FURNISHING SERVICE LTD,Stronger Communities,Director of People,Fixtures & Fittings Purchase,,23/06/15,1113.20,,Furniture
5202579,THE FURNISHING SERVICE LTD,Stronger Communities,Director of People,Fixtures & Fittings Purchase,,23/06/15,1164.44,,Furniture
5202581,THE FURNISHING SERVICE LTD,Stronger Communities,Director of People,Fixtures & Fittings Purchase,,23/06/15,512.11,,Furniture
5202583,THE FURNISHING SERVICE LTD,Stronger Communities,Director of People,Fixtures & Fittings Purchase,,23/06/15,799.36,,Furniture
5202584,THE FURNISHING SERVICE LTD,Stronger Communities,Director of People,Fixtures & Fittings Purchase,,23/06/15,1176.09,,Furniture
5202587,THE FURNISHING SERVICE LTD,Stronger Communities,Director of People,Fixtures & Fittings Purchase,,23/06/15,1180.61,,Furniture
5202590,BIG LOCAL,Childrens Services,Director of People,Non-Authority Accommodation Rental,,23/06/15,2540.93,,Unclassifiable
5202591,THE FURNISHING SERVICE LTD,Stronger Communities,Director of People,Fixtures & Fittings Purchase,,23/06/15,847.12,,Furniture
5202592,BIG LOCAL,Asset & Investment Partnership Management,Director of Place,Non-Authority Accommodation Rental,,23/06/15,985.24,,Unclassifiable
5202593,BIG LOCAL,Asset & Investment Partnership Management,Director of Place,Non-Authority Accommodation Rental,,23/06/15,1244.40,,Unclassifiable
5202594,THE FURNISHING SERVICE LTD,Stronger Communities,Director of People,Fixtures & Fittings Purchase,,23/06/15,1207.72,,Furniture
5202599,THE FURNISHING SERVICE LTD,Stronger Communities,Director of People,Fixtures & Fittings Purchase,,23/06/15,698.28,,Furniture
5202600,THE FURNISHING SERVICE LTD,Stronger Communities,Director of People,Fixtures & Fittings Purchase,,23/06/15,826.08,,Furniture
5202601,BIG LOCAL,Adult Social Care,Director of People,Non-Authority Accommodation Rental,,23/06/15,3972.75,,Unclassifiable
5202603,BIG LOCAL,Asset & Investment Partnership Management,Director of Place,Non-Authority Accommodation Rental,,24/06/15,736.92,,Unclassifiable
5202605,THE FURNISHING SERVICE LTD,Stronger Communities,Director of People,Fixtures & Fittings Purchase,,23/06/15,585.15,,Furniture
5202624,,Adult Social Care,Director of People,Day Care Fees,Redacted Supplier,23/06/15,637.80,,Unclassified
5202626,,Adult Social Care,Director of People,Residential Home Short Stay Fees,Redacted Supplier,23/06/15,637.80,,Unclassifiable
5202627,,Adult Social Care,Director of People,Residential Home Short Stay Fees,Redacted Supplier,23/06/15,1020.48,,Unclassifiable
5202636,BIG LOCAL,Childrens Services,Director of People,Non-Authority Accommodation Rental,,23/06/15,1504.65,,Unclassifiable
5202637,BIG LOCAL,Asset & Investment Partnership Management,Director of Place,Non-Authority Accommodation Rental,,25/06/15,583.44,,Unclassifiable
5202638,THE FURNISHING SERVICE LTD,Stronger Communities,Director of People,Fixtures & Fittings Purchase,,25/06/15,529.10,,Furniture
5202640,THE FURNISHING SERVICE LTD,Stronger Communities,Director of People,Fixtures & Fittings Purchase,,25/06/15,824.95,,Furniture
5202641,THE FURNISHING SERVICE LTD,Stronger Communities,Director of People,Fixtures & Fittings Purchase,,25/06/15,585.54,,Furniture
5202642,THE FURNISHING SERVICE LTD,Stronger Communities,Director of People,Fixtures & Fittings Purchase,,25/06/15,810.80,,Furniture
5202643,THE FURNISHING SERVICE LTD,Stronger Communities,Director of People,Fixtures & Fittings Purchase,,25/06/15,509.85,,Furniture
5202644,THE FURNISHING SERVICE LTD,Stronger Communities,Director of People,Fixtures & Fittings Purchase,,25/06/15,504.88,,Furniture
5202650,ALLIED HEALTHCARE GROUP LTD (MEDICO),Adult Social Care,Director of People,Homecare Fees,,23/06/15,12624.47,,Social Community Care Supplies & Services
5202651,ALLIED HEALTHCARE GROUP LTD (MEDICO),Adult Social Care,Director of People,Homecare Fees,,23/06/15,12099.05,,Social Community Care Supplies & Services
5202654,ALLIED HEALTHCARE GROUP LTD (MEDICO),Adult Social Care,Director of People,Homecare Fees,,24/06/15,12158.83,,Social Community Care Supplies & Services
5202655,ALLIED HEALTHCARE GROUP LTD (MEDICO),Adult Social Care,Director of People,Homecare Fees,,24/06/15,13027.41,,Social Community Care Supplies & Services
5202656,ALLIED HEALTHCARE GROUP LTD (MEDICO),Adult Social Care,Director of People,Homecare Fees,,24/06/15,12107.59,,Social Community Care Supplies & Services
5202672,WORKS 4U SUPPORT SERVICES LIMITED,Education,Director of People,Professional Services,,23/06/15,80044.00,,Human Resources
5202676,NEW CHARTER HOUSING TRUST GROUP,Stronger Communities,Director of People,Supporting People Gross Contract,,24/06/15,20022.16,,Social Community Care Supplies & Services
5202678,PERSON CENTRED CARE SERVICES LIMITED,Adult Social Care,Director of People,Homecare Fees,,25/06/15,1767.52,,Social Community Care Supplies & Services
5202679,NEW CHARTER HOUSING TRUST GROUP,Stronger Communities,Director of People,Supporting People Gross Contract,,24/06/15,5940.33,,Social Community Care Supplies & Services
5202680,NEW CHARTER HOUSING TRUST GROUP,Stronger Communities,Director of People,Contributions,,24/06/15,4166.66,,Unclassified
5202682,A & E FURNITURE LTD T.A THE PAVILION,Adult Social Care,Director of People,Fixtures & Fittings Purchase,,24/06/15,1049.00,,Furniture
5202688,BLACK & WHITE PROMOTIONAL PRINT SERVICES,Governance,Director of Governance and Resources,Printing And Stationery,,23/06/15,975.00,,Facilities & Management Services
5202695,F G MARSHALL LTD,Environmental Services,Director of Place,Plaques,,23/06/15,2160.00,,Environmental Services
5202696,BAAF REGISTERED CHARITY,Childrens Services,Director of People,Subscriptions,,29/06/15,490.00,,Social Community Care
5202704,COMPLETE BACKGROUND SCREENING LTD,Governance,Director of Governance and Resources,Professional Services,,23/06/15,1601.50,,Unclassifiable
5202705,COMPLETE BACKGROUND SCREENING LTD,Governance,Director of Governance and Resources,Professional Services,,23/06/15,2325.00,,Unclassifiable
5202708,NSPP,Stronger Communities,Director of People,Training Course Costs,,23/06/15,4020.00,,Human Resources
5202710,ALTERNATIVE FUTURES GROUP,Adult Social Care,Director of People,Homecare Fees,,23/06/15,138141.84,,Social Community Care Supplies & Services
5202711,ALTERNATIVE FUTURES GROUP,Adult Social Care,Director of People,Homecare Fees,,23/06/15,13636.20,,Social Community Care Supplies & Services
5202712,ALTERNATIVE FUTURES GROUP,Adult Social Care,Director of People,Homecare Fees,,23/06/15,25744.12,,Social Community Care Supplies & Services
5202720,RECOVERY FIRST,Multiple Heads of Service,Multiple Strategic Directorates,Claims Settled,,23/06/15,7000.00,,Legal Services
5202726,CYCLESCHEME LTD,Multiple Heads of Service,Multiple Strategic Directorates,General Equipment Purchase,,24/06/15,833.33,,Unclassified
5202729,RADIO CABS (ASHTON)LTD,Childrens Services,Director of People,Staff Travel Costs,,23/06/15,567.70,,Unclassified
5202743,AUTISM INITIATIVES,Education,Director of People,Voluntary Organisations Fees,,23/06/15,600.66,,Social Community Care
5202745,M.C. & M.A. STEWART HAULAGE LTD,Environmental Services,Director of Place,General Materials,,24/06/15,887.50,,Environmental
5202750,ALTERNATIVE FUTURES GROUP,Adult Social Care,Director of People,Homecare Fees,,23/06/15,25744.12,,Social Community Care Supplies & Services
5202755,ALTERNATIVE FUTURES GROUP,Adult Social Care,Director of People,Homecare Fees,,23/06/15,10710.40,,Social Community Care Supplies & Services
5202757,PROFILE SECURITY SERVICES LIMITED,Asset & Investment Partnership Management,Director of Place,Security Services,,23/06/15,2183.21,,Facilities & Management Services
5202763,DIRECT CARE (NORTH WEST) LTD,Adult Social Care,Director of People,Homecare Fees,,23/06/15,11470.33,,Social Community Care Supplies & Services
5202764,TREASURED MEMORIES LTD,Environmental Services,Director of Place,Plaques,,29/06/15,549.50,,Environmental Services
5202766,PROFILE SECURITY SERVICES LIMITED,Asset & Investment Partnership Management,Director of Place,Security Services,,23/06/15,10513.59,,Facilities & Management Services
5202774,THE FURNISHING SERVICE LTD,Stronger Communities,Director of People,Fixtures & Fittings Purchase,,23/06/15,660.72,,Furniture
5202783,PRD PROPERTY SERVICES LTD,Governance,Director of Governance and Resources,Legal Fees,,23/06/15,4230.00,,Facilities & Management Services
5202790,THE MANCHESTER COLLEGE,Education,Director of People,Professional Services,,24/06/15,7939.08,,Education
5202792,MANCHESTER DOGS HOME,Environmental Services,Director of Place,Pest Control Equipment,,23/06/15,1394.69,,Environmental Services
5202800,FOUNTAINS & FEATURES LIMITED,Environmental Services,Director of Place,General Materials,,23/06/15,2311.00,,Environmental Services
5202803,FOUNTAINS & FEATURES LIMITED,Environmental Services,Director of Place,General Materials,,23/06/15,550.00,,Environmental Services
5202804,FOUNTAINS & FEATURES LIMITED,Environmental Services,Director of Place,General Materials,,23/06/15,3357.00,,Environmental Services
5202805,ZURICH MUNICIPAL CLAIMS BUREAU,Multiple Heads of Service,Multiple Strategic Directorates,Reimbursement Paid To Insurers,,23/06/15,14224.92,,Unclassifiable
5202811,ROCHDALE MBC,Adult Social Care,Director of People,Residential Home Short Stay Fees,,29/06/15,4885.71,,Unclassifiable
5202812,S & M BUILDERS TAMESIDE LTD,Environmental Services,Director of Place,Engineers -External,,24/06/15,2862.00,,"Works - Construction, Repair & Maintenance"
5202813,THE VIEWPOINT ORGANISATION (EUROPE) LTD,Childrens Services,Director of People,Licences,,24/06/15,8574.99,,Consultancy
5202821,MIDLAND SOFTWARE LTD,Governance,Director of Governance and Resources,Computer Software,,24/06/15,25213.93,,Information Communication Technology
5202826,PROFILE SECURITY SERVICES LIMITED,Asset & Investment Partnership Management,Director of Place,Security Services,,23/06/15,4761.90,,Facilities & Management Services
5202827,PROFILE SECURITY SERVICES LIMITED,Environmental Services,Director of Place,Security Services,,23/06/15,2313.90,,Facilities & Management Services
5202828,PROFILE SECURITY SERVICES LIMITED,Asset & Investment Partnership Management,Director of Place,Security Services,,23/06/15,10129.59,,Facilities & Management Services
5202829,PROFILE SECURITY SERVICES LIMITED,Asset & Investment Partnership Management,Director of Place,Security Services,,23/06/15,9470.00,,Facilities & Management Services
5202832,PROFILE SECURITY SERVICES LIMITED,Asset & Investment Partnership Management,Director of Place,Security Services,,23/06/15,2298.90,,Facilities & Management Services
5202835,POST OFFICE,Environmental Services,Director of Place,Motor Licence Costs,,24/06/15,3750.00,,Mail Services
5202844,STOCKPORT MBC,Exchequer,Director of Governance and Resources,Postages,,29/06/15,1430.00,,Unclassified
5202847,ROCHDALE MBC,Environmental Services,Director of Place,Engineers Works,,24/06/15,2000.00,,"Works - Construction, Repair & Maintenance"
5202851,PERSON CENTRED CARE SERVICES LIMITED,Adult Social Care,Director of People,Homecare Fees, ,25/06/15,1739.04,,Social Community Care Supplies & Services
5202852,PERSON CENTRED CARE SERVICES LIMITED,Adult Social Care,Director of People,Homecare Fees, ,25/06/15,1981.20,,Social Community Care Supplies & Services
5202853,PERSON CENTRED CARE SERVICES LIMITED,Adult Social Care,Director of People,Homecare Fees,,29/06/15,1888.80,,Social Community Care Supplies & Services
5202854,HOWARD COOK,Education,Director of People,Professional Services,Business Payment,24/06/15,680.00,,Unclassifiable
5202857,PORTAKABIN LTD,Governance,Director of Governance and Resources,Room Hire,,25/06/15,15058.87,,Unclassifiable
5202858,BERKELEY CONSTRUCTION,Multiple Heads of Service,Multiple Strategic Directorates,General Materials,,24/06/15,970.00,,"Works - Construction, Repair & Maintenance"
5202859,"CRJ TRUSTEES LIMITED (ALAN ROTHWELL, LEE TILLEY & GARY TORR)",Asset & Investment Partnership Management,Director of Place,Non-Authority Accommodation Rental,,29/06/15,20562.50,,Financial Services
5202860,COMFORT CALL LIMITED,Adult Social Care,Director of People,Homecare Fees,,24/06/15,33420.22,,Social Community Care Supplies & Services
5202861,COMFORT CALL LIMITED,Adult Social Care,Director of People,Homecare Fees,,25/06/15,37078.29,,Social Community Care Supplies & Services
5202862,COMFORT CALL LIMITED,Adult Social Care,Director of People,Homecare Fees,,24/06/15,34472.73,,Social Community Care Supplies & Services
5202865,TESTCONSULT LTD,Development Growth & Investment,Director of Place,Engineers Works,,25/06/15,1025.50,,Human Resources
5202874,JO EDWARDS,Childrens Services,Director of People,Professional Services,Business Payment,24/06/15,595.48,,Human Resources
5202878,SECURITY MONITORING CENTRES LTD,Asset & Investment Partnership Management,Director of Place,Security Services,,24/06/15,1340.40,,Facilities & Management Services
5202880,SECURITY MONITORING CENTRES LTD,Asset & Investment Partnership Management,Director of Place,Security Services,,24/06/15,1387.56,,Facilities & Management Services
5202884,SECURITY MONITORING CENTRES LTD,Asset & Investment Partnership Management,Director of Place,Security Services,,24/06/15,1223.80,,Facilities & Management Services
5202886,SECURITY MONITORING CENTRES LTD,Asset & Investment Partnership Management,Director of Place,Security Services,,24/06/15,626.28,,Facilities & Management Services
5202892,M J DELANEY & CO LTD,Stronger Communities,Director of People,Painting Works,,24/06/15,1100.00,,"Works - Construction, Repair & Maintenance"
5202893,MRL HEALTHCARE LIMITED,Adult Social Care,Director of People,Homecare Fees,,25/06/15,19215.00,,Social Community Care Supplies & Services
5202895,MRL HEALTHCARE LIMITED,Adult Social Care,Director of People,Homecare Fees,,24/06/15,1792.89,,Social Community Care Supplies & Services
5202897,FINGERPRINTS LTD,Education,Director of People,Uniforms/Clothing,,24/06/15,731.00,,Clothing
5202898,ABLE CARE AND SUPPORT SERVICES LTD,Adult Social Care,Director of People,Homecare Fees,,25/06/15,786.75,,Social Community Care Supplies & Services
5202900,LAUREL BANK SUPPORT AT HOME,Adult Social Care,Director of People,Homecare Fees,,29/06/15,2132.87,,Social Community Care Supplies & Services
5202901,MERIDIAN HEALTHCARE LTD,Adult Social Care,Director of People,Day Centre Fees,,25/06/15,20089.50,,Social Community Care 
5202902,MRL HEALTHCARE LIMITED,Adult Social Care,Director of People,Homecare Fees,,29/06/15,691.74,,Social Community Care Supplies & Services
5202903,MRL HEALTHCARE LIMITED,Adult Social Care,Director of People,Homecare Fees,,29/06/15,19215.00,,Social Community Care Supplies & Services
5202917,STOCKPORT NHS FOUNDATION TRUST,Childrens Services,Director of People,Other Local Authority fees,,25/06/15,1891.00,,Medical
5202918,THOMAS BOW LTD T/A THOMAS BOW  CITY ASPHALT,Multiple Heads of Service,Multiple Strategic Directorates,Highway Construction,,25/06/15,102491.39,,"Works - Construction, Repair & Maintenance"
5202924,RAYMOND C HARRISON BUILDERS,Housing,Director of Place,Improvement Grants - Final Mandatory,,25/06/15,4335.00,,"Works - Construction, Repair & Maintenance"
5202927,FALCON CHAMBERS,Asset & Investment Partnership Management,Director of Place,Legal Fees,,25/06/15,750.00,,Legal Services
5202934,REMPLOY LIMITED,Adult Social Care,Director of People,Telephone Landline Costs,,29/06/15,598.00,,Unclassifiable
5202935,REMPLOY LIMITED,Adult Social Care,Director of People,Telephone Landline Costs,,29/06/15,747.50,,Unclassifiable
5202936,COMFORT CALL LIMITED,Adult Social Care,Director of People,Homecare Fees,,29/06/15,31454.04,,Social Community Care Supplies & Services
5202938,POSTAGE BY PHONE PITNEY BOWES LTD,Exchequer,Director of Governance and Resources,Postages,,29/06/15,40000.00,,Mail Services
5202944,AIDSERVICE LTD,Adult Social Care,Director of People,Adaptations - Small Jobs,,29/06/15,1309.00,,Social Community Care
5202956,SEASHELL TRUST,Education,Director of People,Personal Needs Entertainments & Holidays,,29/06/15,18428.10,,Social Community Care Supplies & Services
5202968,COMPLETE BACKGROUND SCREENING LTD,Governance,Director of Governance and Resources,Professional Services,,29/06/15,4281.50,,Unclassifiable
5203005,NORCOMM (UK) LTD,Multiple Heads of Service,Multiple Strategic Directorates,Communications Equipment,,29/06/15,1805.23,,Information Communication Technology
5203036,ABLE CARE AND SUPPORT SERVICES LTD,Adult Social Care,Director of People,Homecare Fees,,29/06/15,2702.39,,Social Community Care Supplies & Services
5203037,ABLE CARE AND SUPPORT SERVICES LTD,Adult Social Care,Director of People,Homecare Fees,,29/06/15,906.31,,Social Community Care Supplies & Services
5203038,ABLE CARE AND SUPPORT SERVICES LTD,Adult Social Care,Director of People,Homecare Fees,,29/06/15,978.90,,Social Community Care Supplies & Services
29000026,S2 ENTERPRISE LTD T/A PENNY MEADOW PHARMACY,Public Health,Director of Public Health,Local Enhanced Services,,24/06/15,1370.00,,Consultancy
29000027,ALBION MEDICAL PRACTICE,Public Health,Director of Public Health,Local Enhanced Services,,24/06/15,564.00,,Consultancy
29000027,AWBURN HOUSE MEDICAL PRACTICE,Public Health,Director of Public Health,Local Enhanced Services,,24/06/15,995.00,,Consultancy
29000027,BEDFORD HOUSE MEDICAL CENTRE,Public Health,Director of Public Health,Local Enhanced Services,,24/06/15,622.00,,Unclassified
29000027,BOOTS UK LTD,Public Health,Director of Public Health,Local Enhanced Services,,24/06/15,1520.02,,Unclassified
29000027,CHURCHGATE SURGERY,Public Health,Director of Public Health,Local Enhanced Services,,24/06/15,359.90,,Consultancy
29000027,CHURCHGATE SURGERY,Public Health,Director of Public Health,National Enhanced Services,,24/06/15,5312.00,,Consultancy
29000027,CLARENDON MEDICAL PRACTICE,Public Health,Director of Public Health,Local Enhanced Services,,24/06/15,1164.00,,Consultancy
29000027,DAVAAR MEDICAL CENTRE,Public Health,Director of Public Health,Local Enhanced Services,,24/06/15,1420.00,,Consultancy
29000027,DENTON MEDICAL PRACTICE,Public Health,Director of Public Health,Local Enhanced Services,,24/06/15,2861.80,,Consultancy
29000027,HATTERSLEY GROUP PRACTICE,Public Health,Director of Public Health,Local Enhanced Services,,24/06/15,1368.90,,Consultancy
29000027,HAUGHTON-THORNLEY MEDICAL CENTRE,Public Health,Director of Public Health,Local Enhanced Services,,24/06/15,1781.20,,Unclassified
29000027,LLOYDS PHARMACY LTD,Public Health,Director of Public Health,Local Enhanced Services,,24/06/15,1236.08,,Consultancy
29000027,MEDICX PHARMACY,Public Health,Director of Public Health,Local Enhanced Services,,24/06/15,2476.09,,Consultancy
29000027,ST ANDREWS HOUSE MEDICAL CENTRE,Public Health,Director of Public Health,Local Enhanced Services,,24/06/15,523.00,,Consultancy
29000027,STAMFORD HOUSE MEDICAL CENTRE,Public Health,Director of Public Health,Local Enhanced Services,,24/06/15,1010.00,,Medical
29000027,TESCO INSTORE PHARMACY,Public Health,Director of Public Health,Local Enhanced Services,,24/06/15,2751.13,,Consultancy
29000027,THE BROOKE SURGERY,Public Health,Director of Public Health,Local Enhanced Services,,24/06/15,915.00,,Consultancy
29000027,THE GROUP PHARMACY,Public Health,Director of Public Health,Local Enhanced Services,,24/06/15,660.93,,Consultancy
29000027,WELL PHARMACY,Public Health,Director of Public Health,Local Enhanced Services,,24/06/15,3735.06,,Unclassified
29000027,WEST END MEDICAL PRACTICE,Public Health,Director of Public Health,Local Enhanced Services,,24/06/15,841.00,,Consultancy
29000027,WEST END MEDICAL PRACTICE,Public Health,Director of Public Health,National Enhanced Services,,24/06/15,333.33,,Consultancy
,HAYS SPECIALIST RECRUITMENT GROUP,Multiple Heads of Service,Multiple Strategic Directorates,Agency Staff, ,,180192.02,,Human Resources
 ,CAPITA - BENEFIT PAYMENTS,Exchequer,Director of Governance and Resources,Housing Benefit Payments,, ,11976580.20,,Unclassified
,CARE RELATED PAYMENTS,Multiple Heads of Service,Multiple Strategic Directorates,Care Related Payments, ,,436008.09,,Unclassified
,FOSTERING/ADOPTION/LOOKED AFTER CHILDREN RELATED PAYMENTS,Childrens Services,Director of People,Child related Payments, ,,1243523.96,,Unclassified
